{"text_format":"1","workbook":"xlsx","n_sheets":4,"sheets":["Main","Professional Development","Inst-Disc Service","Applied Research"],"not_rendered":{"charts":0,"images":0,"macros":1,"external_links":0,"defined_names":8,"comments":0,"pivot_tables":0},"unopened":[],"bounds":{"document_bytes":16777216,"sheet_cells":100000,"rows_first":2000,"rows_last":500,"rows_between":2000,"halvings":0,"cell_chars":16384,"cell_head_chars":4096},"cells_cut":0,"cells_raw":0,"read":"whole","date_system":"1900"}

{"sheet":"Main","index":0,"n_rows":989,"n_cols":27,"rows_kept":989,"cut":false,"hidden":false,"merged":[[42,15,42,16],[4,13,7,13],[4,14,7,14],[4,11,7,11],[4,12,7,12],[5,7,5,10],[4,7,4,10],[18,1,18,5],[19,1,19,5],[20,1,20,5],[24,1,24,5],[25,1,25,5],[26,1,26,5],[27,1,27,5],[28,1,28,5],[32,1,32,5],[33,1,33,5],[34,1,34,5],[138,4,138,5],[107,1,107,7],[109,1,109,6],[110,1,110,6],[111,1,111,6],[112,1,112,6],[113,1,113,6]]}
[null,null,null,null,null,null,null,"LC Faculty Workload CalCulator - 2023 Academic year"]
[null,null,null,null,null,"Please fill in Faculty Member name here 4"]
[null,null,null,null,null,null,null,null,null,null,"To calculate your workload , enter your information ONLY where you see a cell with these colours 4",null,null,null,null,null,null,null,null,"22FL/23WN"]
[null,null,null,null,null,null,null,null,null,null,null,null,null,null,null,null,null,null,"Course","Avg Cap","Course","SECT CR",null,"Weekly Contact Hours",null,null,"Additional Work"]
[null,"What type of contract is your main/primary contract with LC?",null,null,null,null,null,"Full-Time Continuing",null,null,null,"Target Hours",null,null,"Total Hours",null,null,null,"AAT2250",16,"ACC1125",1.5,null,1,null,null,"No"]
[null,"For your primary contract, what type of instruction do you do?",null,null,null,null,null,"Academic Subject Instruction (15 weeks)",null,null,null,null,null,null,null,null,null,null,"AAT2250L",16,"ACC1146",3,null,2,null,null,"Yes"]
[null,"If you are continuing or term-certain, what % of a full load is your primary contract?",null,null,null,null,null,null,null,null,1,null,null,null,null,null,null,null,"AAT2250T",16,"ACC1170",3,null,3]
[null,"Do you do additional (extra contract) work above your assigned workload?",null,null,null,null,null,null,null,null,"Yes",null,null,null,null,null,null,null,"AAT2251",16,"ACC1175",3,null,4,null,null,"Type of Contract"]
[null,null,null,null,null,null,null,null,null,null,"1) Base Yearly Hours - all faculty",{"$f":"VLOOKUP(H6,$X$24:$Y$27,2,FALSE)","v":540},null,null,{"$f":"(1330)*K7","v":1330},null,null,null,"AAT2260",16,"ACC2250",3,null,5,null,null,"Full-Time Continuing"]
[null,null,null,null,null,null,null,null,null,null,"2) Annual Hrs Cross Check  (Target Hours x 2)",null,null,null,{"$f":"L9*2*K7","v":1080},null,null,null,"AAT2260L",16,"ACC2251",3,null,6,null,null,"Part-Time Continuing"]
[null,null,null,null,null,null,null,null,null,null,"Hours remaining for Institutional Service and/or PD",null,null,null,{"$f":"O9-O10","v":250},null,null,null,"AAT2260T",16,"ACC2271",3,null,7,null,null,"Term-Certain"]
[null,null,null,null,null,null,null,null,null,null,null,null,null,null,null,null,null,null,"AAT2261",16,"ACC2273",3,null,8,null,null,"Casual or DL contract(s)"]
[null,"Summary Calculations",null,null,null,null,null,null,null,null,null,null,null,null,null,null,null,null,"AAT2261L",16,"ACC2278",3,null,9]
[null,null,null,null,null,null,null,null,null,null,null,null,null,null,"Primary","Extra","Totals",null,"AAT2261T",16,"AGB1140M1",0.75,null,10,null,null,"How Paid"]
[null,null,null,null,null,null,null,null,null,null,null,null,null,"hours",{"$f":"$O123","v":250},{"$f":"$P127","v":0},{"$f":"$Q131","v":250},null,"AAT2270",16,"AGB1140M2",0.75,null,11,null,null,"Primary"]
[null,null,null,null,null,null,null,null,null,null,null,null,null,"% ",{"$f":"$O124","v":0.18796992481203006},{"$f":"$P128","v":0},{"$f":"$Q132","v":0.18796992481203006},null,"AAT2270L",16,"AGB1150M1",0.75,null,12,null,null,"Casual"]
[null,null,null,null,null,null,null,null,null,null,null,null,null,null,null,null,null,null,"AAT2270T",16,"AGB1150M2",0.75,null,null,null,null,"Distance"]
[null,"Professional Development",null,null,null,null,"up to 50/70 hrs suggested for F/T",null,null,null,null,null,null,"Click here to learn more.",null,null,null,null,"AAT2280",16,"AGB1150M3",0.75,null,"Percentages",null,null,"'Above'"]
[null,null,null,null,null,null,null,null,null,null,null,null,null,"Suggested Amount:",{"$f":"IF(SUM(O20:O21)=0,0.280899*O11,0)","v":70.22475},null,null,null,"AAT2280L",16,"AGB1150M4",0.75,null,0]
[null,null,null,null,null,null,null,null,null,null,null,null,null,null,0,null,null,null,"AAT2280T",16,"AGB1151M1",0.75,null,1.2]
[null,null,null,null,null,null,null,null,null,null,null,null,null,null,0,null,null,null,"AAT2290W",16,"AGB1151M2",0.75]
[null,null,null,null,null,null,null,null,null,null,null,null,null,null,{"$f":"SUM(O19:O21)","v":70.22475},null,null,null,"ACC1125",24,"AGB1151M3",0.75]
[null,null,null,null,null,null,null,null,null,null,null,null,null,null,null,null,null,null,"ACC1146",42,"AGB1160M1",0.75,null,"Instruction Type","Workload"]
[null,"Institutional/Discipline Service",null,null,null,null,"up to 128/180 hrs suggested for F/T",null,null,null,null,null,null,"Click here to learn more",null,null,null,null,"ACC1170",35.823529411764703,"AGB1160M2",0.75,null,"Academic Subject Instruction (15 weeks)",540,15]
[null,null,null,null,null,null,null,null,null,null,null,null,null,"Suggested Amount:",{"$f":"IF(SUM(O26:O29)=0,0.719101*O11,0)","v":179.77525},null,null,null,"ACC1175",36.857142857142854,"AGB1160M3",0.75,null,"Academic Subject Instruction (16 weeks)",576,16]
[null,null,null,null,null,null,null,null,null,null,null,null,null,null,0,null,null,null,"ACC2250",40,"AGB1160M4",0.75,null,"Trades Instruction",649,16]
[null,null,null,null,null,null,null,null,null,null,null,null,null,null,0,null,null,null,"ACC2251",40,"AGB1161M1",0.75,null,"Nursing Instruction",700,16]
[null,null,null,null,null,null,null,null,null,null,null,null,null,null,0,null,null,null,"ACC2271",40,"AGB1161M2",0.75]
[null,null,null,null,null,null,null,null,null,null,null,null,null,null,0,null,null,null,"ACC2273",40,"AGB1162M1",0.75]
[null,null,null,null,null,null,null,null,null,null,null,null,null,null,{"$f":"SUM(O25:O29)","v":179.77525},null,null,null,"ACC2278",30,"AGB1162M2",0.75]
[null,null,null,null,null,null,null,null,null,null,null,null,null,null,null,null,null,null,"AET115",8,"AGB1163M1",0.75]
[null,"Applied Research ",null,null,null,null,"By Mutual Agreement",null,null,null,null,null,null,"Click here to learn more",null,null,null,null,"AET135",8,"AGB1163M2",0.75]
[null,null,null,null,null,null,null,null,null,null,null,null,null,null,0,null,null,null,"AGS1150",42.666666666666664,"AGB1171M1",0.75]
[null,null,null,null,null,null,null,null,null,null,null,null,null,null,0,null,null,null,"AGS1150L",18.399999999999999,"AGB1171M2",0.75]
[null,null,null,null,null,null,null,null,null,null,null,null,null,null,0,null,null,null,"AGS2250",18,"AGB1171M3",0.75]
[null,"Hrs captured as agreed between faculty, dean & Applied Research",null,null,null,null,null,null,null,null,null,null,null,null,{"$f":"SUM(O33:O35)","v":0},null,null,null,"AGS2251",18,"AGB1171M4",0.75]
[null,null,null,null,null,null,null,null,null,null,null,null,null,null,null,null,null,null,"AGS2255",48,"AGB1172M1",0.75]
[null,"INSTRUCTIONAL RESPONSIBILITIES - Primary Assignment",null,null,null,null,null,null,null,null,null,null,null,null,null,null,null,null,"AGS2255L",18,"AGB1172M2",0.75]
[null,null,null,null,null,"FRONT END",null,null,null,"BACK END",null,null,null,null,null,null,null,null,"AGS2280",30,"AGB1172M3",0.75]
[null,null,null,null,null,"Course Prep & Delivery",null,null,null,"      Student Support & Assessment (S&A)",null,null,null,null,null,null,null,null,"AGS2280L",15,"AGR1164",3]
[null,null,null,null,null,"SCH Factor",2,null,"Weeks/Term:",{"$f":"VLOOKUP($H$6,$X$24:$Z$27,3,FALSE)","v":15},null,null,null,null,null,null,null,null,"AGS3381",30,"AGR1164L",0]
[null,"1st Term/Period",null,null,null,"Term Lgth",{"$f":"VLOOKUP($H$6,$X$24:$Z$27,3,FALSE)","v":15},null,"Support Hrs Fn:",0.15,null,"Assessment Hrs Fn:",0.03,null,null,"Section Size Standard",null,null,"AGS3381L",30,"AGR1168",3]
[null,"COURSE NO","SECT NO","TERM (eg. 23FL or 24WN)","DIFF PREP FLAG","Weekly Student Contact Hrs (SCH)","Total Prep & Delivery Hrs","Course Fill Standard","Avg Course Fill","Support Hours Factor","Course Assmt Flag","Assess-ment Factor","Total S&A Hrs",null,"Total Inst'l Hrs Primary","Standardized Class Size Averages",null,null,"AGS3382",36,"AGR1168L",0]
[null,null,null,null,{"$f":"IF(OR(B44=B42,ISBLANK(B44)),0,1)","v":0},null,{"$f":"IF(LEN(B44)>0,+F44*$G$41*$G$42,0)","v":0},{"$f":"IF($B44=\"\",\"0\",IF(RIGHT($B44,1)=\"L\",$Q$50,IF(RIGHT($B44,1)=\"T\",$Q$50,$Q$45)))","v":"0"},{"$f":"IF(LEN(B44)>0,VLOOKUP(B44,$S$5:$T$1081,2,FALSE),\"\")","v":""},{"$f":"IF(H44=$Q$45,IF(I44>$Q$47,(I44-$Q$47)*$J$42*$J$41,IF(I44<$Q$48,(I44-$Q$48)*$J$42*$J$41,)),IF(H44=$Q$50,IF(I44>$Q$52,(I44-$Q$52)*$J$41*$J$42,IF(I44<$Q$53,(I44-$Q$53)*$J$41*$J$42,0))))","v":false},0,{"$f":"IF(K44=1,I44*$J$41*$M$42,0)","v":0},{"$f":"J44+L44","v":0},null,{"$f":"$G44+$M44","v":0},"LEC:",null,null,"AGS3382L",18,"AGR2250",3]
[null,null,null,null,{"$f":"IF(OR(B45=B44,ISBLANK(B45)),0,1)","v":0},null,0,{"$f":"IF($B45=\"\",\"0\",IF(RIGHT($B45,1)=\"L\",$Q$50,IF(RIGHT($B45,1)=\"T\",$Q$50,$Q$45)))","v":"0"},"",false,0,0,{"$f":"J45+L45","v":0},null,{"$f":"$G45+$M45","v":0},"Mean",22.5,null,"AGS3385",36,"AGR2250L",0]
[null,null,null,null,{"$f":"IF(OR(B46=B45,ISBLANK(B46)),0,1)","v":0},null,0,"0","",false,0,0,0,null,0,"St Dev",11.5,null,"AGS3385L",18,"AGR2261",3]
[null,null,null,null,{"$f":"IF(OR(B47=B46,ISBLANK(B47)),0,1)","v":0},null,0,"0","",false,0,0,0,null,0,"Upper Lmt",34,null,"AGS4450",15,"AGR2266",3]
[null,null,null,null,{"$f":"IF(OR(B48=B47,ISBLANK(B48)),0,1)","v":0},null,0,"0","",false,0,0,0,null,0,"Lower Lmt",11,null,"AGS4481",15,"AGR2266L",0]
[null,null,null,null,{"$f":"IF(OR(B49=B48,ISBLANK(B49)),0,1)","v":0},null,0,"0","",false,0,0,0,null,0,"LAB/TUT:",null,null,"AGS4481L",15,"AGR2280",3]
[null,null,null,null,0,null,0,"0",{"$f":"IF(LEN(B50)>0,VLOOKUP(B50,$S$5:$T$1081,2,FALSE),\"\")","v":""},false,0,0,{"$f":"J50+L50","v":0},null,0,"Mean",14.2,null,"AGS4483",15,"AGR2280L",0]
[null,null,null,null,0,null,0,"0",{"$f":"IF(LEN(B51)>0,VLOOKUP(B51,$S$5:$T$1081,2,FALSE),\"\")","v":""},false,0,0,0,null,0,"St. Dev",4.9000000000000004,null,"AGS4483L",15,"AGR2286",3]
[null,null,null,null,0,null,0,"0",{"$f":"IF(LEN(B52)>0,VLOOKUP(B52,$S$5:$T$1081,2,FALSE),\"\")","v":""},false,0,0,0,null,0,"Upper Lmt",19,null,"AGS4485",15,"AGR2287",3]
[null,null,null,null,0,null,0,"0",{"$f":"IF(LEN(B53)>0,VLOOKUP(B53,$S$5:$T$1081,2,FALSE),\"\")","v":""},false,0,0,0,null,0,"Lower Lmt",9,null,"AGS4485L",15,"AGR2287L",0]
[null,null,null,null,0,null,0,"0",{"$f":"IF(LEN(B54)>0,VLOOKUP(B54,$S$5:$T$1081,2,FALSE),\"\")","v":""},false,0,0,0,null,0,null,null,null,"AHM1124",32,"AGR2289",3]
[null,null,null,null,0,null,0,"0",{"$f":"IF(LEN(B55)>0,VLOOKUP(B55,$S$5:$T$1081,2,FALSE),\"\")","v":""},false,0,0,0,null,0,null,null,null,"AHM1124L",32,"AGR2289L",0]
[null,null,null,null,0,null,0,"0","",false,0,0,0,null,0,null,null,null,"AHM1126",32,"AGR2291",3]
[null,null,null,null,0,null,0,"0","",false,0,0,0,null,0,null,null,null,"AHM1126L",32,"AGR2291L",0]
[null,null,null,null,{"$f":"IF(OR(B58=B57,ISBLANK(B58)),0,1)","v":0},null,0,"0","",false,0,0,0,null,0,null,null,null,"AHM1127",32,"AGR2294",3]
[null,null,null,null,0,null,0,"0","",false,0,0,0,null,0,null,null,null,"AHM1127L",32,"AGR2294L",0]
[null,null,null,null,0,null,0,"0","",false,0,0,0,null,0,null,null,null,"AHM1129",32,"AOP1142",3]
[null,null,null,null,0,null,0,"0","",false,0,0,0,null,0,null,null,null,"AHM1129L",32,"AOP1145",3]
[null,null,null,null,0,null,0,"0","",false,0,0,0,null,0,null,null,null,"AHM1130",32,"AOP1148",1.5]
[null,null,null,null,0,null,0,"0","",false,0,0,0,null,0,null,null,null,"AHM1130L",32,"ART1150",3]
[null,"TERM TOTALS",null,null,{"$f":"SUM(E44:E63)","v":0},{"$f":"SUM(F44:F63)","v":0},{"$f":"SUM(G44:G63)","v":0},null,null,{"$f":"SUM(J44:J63)","v":0},null,{"$f":"SUM(L44:L63)","v":0},{"$f":"SUM(M44:M63)","v":0},null,{"$f":"SUM(O44:O63)","v":0},null,null,null,"AHM1131",32,"ART1170",3]
[null,null,null,null,null,null,null,null,null,null,null,null,null,null,null,null,null,null,"AHM1131L",32,"BIO1145",3]
[null,"2nd Term/Period",null,null,null,null,null,null,null,null,null,null,null,null,null,null,null,null,"AHM1132",32,"BIO1145L",0]
[null,"COURSE NO","SECT NO","TERM (eg. 23FL or 24WN)","DIFF PREP FLAG","Weekly Student Contact Hrs (SCH)","Total Prep & Delivery Hrs","Crse Fill Standard","Avg Crse Fill","Support Hours Factor","Crse Assmt Flag","Assess-ment Factor","Total S&A Hrs",null,"Total Inst'l Hrs Primary",null,null,null,"AHM1132L",32,"BIO1146",3]
[null,null,null,null,{"$f":"IF(OR(B68=B66,ISBLANK(B68)),0,1)","v":0},null,{"$f":"IF(LEN(B68)>0,+F68*$G$41*$G$42,0)","v":0},{"$f":"IF($B68=\"\",\"0\",IF(RIGHT($B68,1)=\"L\",$Q$50,IF(RIGHT($B68,1)=\"T\",$Q$50,$Q$45)))","v":"0"},{"$f":"IF(LEN(B68)>0,VLOOKUP(B68,$S$5:$T$1081,2,FALSE),\"\")","v":""},{"$f":"IF(H68=$Q$45,IF(I68>$Q$47,(I68-$Q$47)*$J$42*$J$41,IF(I68<$Q$48,(I68-$Q$48)*$J$42*$J$41,)),IF(H68=$Q$50,IF(I68>$Q$52,(I68-$Q$52)*$J$41*$J$42,IF(I68<$Q$53,(I68-$Q$53)*$J$41*$J$42,0))))","v":false},0,{"$f":"IF(K68=1,I68*$J$41*$M$42,0)","v":0},{"$f":"J68+L68","v":0},null,{"$f":"$G68+$M68","v":0},null,null,null,"AHM1135",32,"BIO1146L",0]
[null,null,null,null,{"$f":"IF(OR(B69=B68,ISBLANK(B69)),0,1)","v":0},null,0,"0","",false,0,0,0,null,{"$f":"$G69+$M69","v":0},null,null,null,"AHM1135L",32,"BIO1150",3]
[null,null,null,null,0,null,0,"0","",false,0,0,0,null,0,null,null,null,"ANM2250",15,"BIO1150L",0]
[null,null,null,null,{"$f":"IF(OR(B71=B70,ISBLANK(B71)),0,1)","v":0},null,0,"0","",false,0,0,0,null,0,null,null,null,"ANM2250L",15,"BIO1151",3]
[null,null,null,null,{"$f":"IF(OR(B72=B71,ISBLANK(B72)),0,1)","v":0},null,0,"0","",false,0,0,0,null,0,null,null,null,"ANM2251",15,"BIO1152",3]
[null,null,null,null,{"$f":"IF(OR(B73=B72,ISBLANK(B73)),0,1)","v":0},null,0,"0","",false,0,0,0,null,0,null,null,null,"ANM2251L",15,"BIO1152L",0]
[null,null,null,null,0,null,0,"0",{"$f":"IF(LEN(B74)>0,VLOOKUP(B74,$S$5:$T$1081,2,FALSE),\"\")","v":""},false,0,0,0,null,0,null,null,null,"ANM2252",15,"BIO1155",3]
[null,null,null,null,0,null,0,"0","",false,0,0,0,null,0,null,null,null,"ANM2252L",15,"BIO1156",3]
[null,null,null,null,0,null,0,"0","",false,0,0,0,null,0,null,null,null,"ANM2253",15,"BIO1160",3]
[null,null,null,null,0,null,0,"0","",false,0,0,0,null,0,null,null,null,"ANM2253L",15,"BIO1160L",0]
[null,null,null,null,0,null,0,"0","",false,0,0,{"$f":"J78+L78","v":0},null,0,null,null,null,"ANM2254",15,"BIO1161",3]
[null,null,null,null,0,null,0,"0","",false,0,0,0,null,0,null,null,null,"ANM2254L",15,"BIO1161L",0]
[null,null,null,null,0,null,0,"0","",false,0,0,0,null,0,null,null,null,"ANT1195",40,"BIO1162",3]
[null,null,null,null,0,null,0,"0","",false,0,0,0,null,0,null,null,null,"AOP1142",42,"BIO1162L",0]
[null,null,null,null,0,null,0,"0","",false,0,0,0,null,0,null,null,null,"AOP1143",42,"BIO1163",3]
[null,null,null,null,{"$f":"IF(OR(B83=B82,ISBLANK(B83)),0,1)","v":0},null,0,"0","",false,0,0,0,null,0,null,null,null,"AOP1145",42,"BIO1163L",0]
[null,null,null,null,{"$f":"IF(OR(B84=B83,ISBLANK(B84)),0,1)","v":0},null,0,"0","",false,0,0,0,null,0,null,null,null,"ARK1165",40,"BIO1164",3]
[null,null,null,null,{"$f":"IF(OR(B85=B84,ISBLANK(B85)),0,1)","v":0},null,0,"0","",false,0,0,0,null,0,null,null,null,"ART1150",25,"BIO1164L",0]
[null,null,null,null,{"$f":"IF(OR(B86=B85,ISBLANK(B86)),0,1)","v":0},null,0,"0","",false,0,0,0,null,0,null,null,null,"ART1160",25,"BIO1167",3]
[null,null,null,null,{"$f":"IF(OR(B87=B86,ISBLANK(B87)),0,1)","v":0},null,0,"0","",false,0,0,0,null,0,null,null,null,"ART1170",25,"BIO1167L",0]
[null,"TERM TOTALS",null,null,{"$f":"SUM(E68:E87)","v":0},{"$f":"SUM(F68:F87)","v":0},{"$f":"SUM(G68:G87)","v":0},null,null,{"$f":"SUM(J68:J87)","v":0},null,{"$f":"SUM(L68:L87)","v":0},{"$f":"SUM(M68:M87)","v":0},null,{"$f":"SUM(O68:O87)","v":0},null,null,null,"AST1116",24,"BIO1168",3]
[null,null,null,null,null,null,null,null,null,null,null,null,null,null,null,null,null,null,"AST1116L",24,"BIO1168L",0]
[null,null,null,null,"Total DIFF PREP FLAGs","Weekly Student Contact Hrs (SCH)","Total Prep & Delivery Hrs",null,null,"Support Hours Factor",null,"Assess-ment Factor","Total S&A Hrs",null,"Total Inst'l Hrs Primary",null,null,null,"AST1119",24,"BIO1170",3]
[null,"Primary Assignment TOTALS",null,null,{"$f":"E64+E88","v":0},{"$f":"F64+F88","v":0},{"$f":"G64+G88","v":0},null,null,{"$f":"J64+J88","v":0},null,{"$f":"L64+L88","v":0},{"$f":"M64+M88","v":0},null,{"$f":"O64+O88","v":0},null,null,null,"AST1119L",24,"BIO1170L",0]
[null,null,null,null,null,null,null,null,null,null,null,null,null,null,null,null,null,null,"AST1122",24,"BIO1172",3]
[null,"INSTRUCTIONAL RESPONSIBILITIES - Extra Assignments",null,null,null,null,null,null,null,null,null,null,null,null,null,null,null,null,"AST1131",24,"BIO1172L",0]
[null,null,null,null,null,null,null,null,null,null,null,null,null,null,null,null,null,null,"AST1131L",24,"BIO1175",3]
[null,"COURSE NO","SECT NO","TERM (eg. 23FL or 24WN)","DIFF PREP FLAG","Weekly Student Contact Hrs (SCH)","Total Prep & Delivery Hrs","Crse Fill Standard","Avg Crse Fill","Support Hours Factor","Crse Assmt Flag","Assess-ment Factor","Total S&A Hrs",null,null,"Total Inst'l Hrs Extra",null,null,"AST1133",24,"BIO1175L",0]
[null,null,null,null,{"$f":"IF(OR(B96=B94,ISBLANK(B96)),0,1)","v":0},null,{"$f":"IF(LEN(B96)>0,+F96*$G$41*$G$42,0)","v":0},{"$f":"IF(LEN(B96)=7,$Q$45,IF(LEN(B96)=8,$Q$50,0))","v":0},{"$f":"IF(LEN(B96)>0,VLOOKUP(B96,$S$5:$T$1081,2,FALSE),\"\")","v":""},{"$f":"IF(H96=$Q$45,IF(I96>$Q$47,(I96-$Q$47)*$J$42*$J$41,IF(I96<$Q$48,(I96-$Q$48)*$J$42*$J$41,)),IF(H96=$Q$50,IF(I96>$Q$52,(I96-$Q$52)*$J$41*$J$42,IF(I96<$Q$53,(I96-$Q$53)*$J$41*$J$42,0))))","v":false},0,{"$f":"IF(K96=1,I96*$J$41*$M$42,0)","v":0},{"$f":"J96+L96","v":0},null,null,{"$f":"$G96+$M96","v":0},null,null,"AST1133L",24,"BIO2262",3]
[null,null,null,null,{"$f":"IF(OR(B97=B96,ISBLANK(B97)),0,1)","v":0},null,0,0,"",false,0,{"$f":"IF(K97=1,I97*$J$41*$M$42,0)","v":0},0,null,null,{"$f":"$G97+$M97","v":0},null,null,"AST1134",24,"BIO2262L",0]
[null,null,null,null,0,null,0,0,"",false,0,{"$f":"IF(K98=1,I98*$J$41*$M$42,0)","v":0},0,null,null,0,null,null,"AST1134L",24,"BIO2269",3]
[null,null,null,null,0,null,0,0,"",false,0,{"$f":"IF(K99=1,I99*$J$41*$M$42,0)","v":0},0,null,null,0,null,null,"AST1135",24,"BIO2269L",0]
[null,null,null,null,0,null,0,0,{"$f":"IF(LEN(B100)>0,VLOOKUP(B100,$S$5:$T$1081,2,FALSE),\"\")","v":""},false,0,0,0,null,null,0,null,null,"AST1135L",24,"BIO3350",3]
[null,null,null,null,0,null,0,0,{"$f":"IF(LEN(B101)>0,VLOOKUP(B101,$S$5:$T$1081,2,FALSE),\"\")","v":""},false,0,0,{"$f":"J101+L101","v":0},null,null,{"$f":"$G101+$M101","v":0},null,null,"AST1138",24,"BIO3350L",0]
[null,null,null,null,0,null,0,0,{"$f":"IF(LEN(B102)>0,VLOOKUP(B102,$S$5:$T$1081,2,FALSE),\"\")","v":""},false,0,0,{"$f":"J102+L102","v":0},null,null,{"$f":"$G102+$M102","v":0},null,null,"AST1138L",24,"BUS1124",3]
[null,"Extra Assignment TOTALS",null,null,{"$f":"SUM(E96:E102)","v":0},{"$f":"SUM(F96:F102)","v":0},{"$f":"SUM(G96:G102)","v":0},null,null,{"$f":"SUM(J96:J102)","v":0},null,{"$f":"SUM(L96:L102)","v":0},{"$f":"SUM(M96:M102)","v":0},null,null,{"$f":"SUM(P96:P102)","v":0},null,null,"AST1139",24,"BUS1166",3]
[null,null,null,null,null,null,null,null,null,null,null,null,null,null,null,null,null,null,"AST1139L",24,"BUS1168",3]
[null,"Extraordinary Workload Considerations / Requirements:",null,null,null,null,null,null,null,null,null,null,null,null,null,null,null,null,"AST1141",24,"BUS1170",3]
[null,"> Release Time for Faculty Business as per Collective Agreement",null,null,null,null,null,null,null,null,null,null,null,null,null,null,null,null,"AST1141L",24,"BUS1176",3]
[null,"> Release for new or probationary faculty to do ICP",null,null,null,null,null,null,null,null,null,null,null,null,null,null,null,null,"AST1142",24,"BUS1177",3]
[null,"> Curriculum Dev for new programming or comprehensive redesign; Transitioning F2F to Online",null,null,null,null,null,null,null,null,null,null,null,null,null,null,null,null,"AST1142L",24,"BUS1180",3]
[null,"Reason/Explanation:",null,null,null,null,null,null,null,null,null,null,null,null,null,null,null,null,"AST1143",24,"BUS1185",1.5]
[null,null,null,null,null,null,null,null,null,null,null,null,null,null,null,null,null,null,"AST1143L",24,"BUS2267",3]
[null,null,null,null,null,null,null,null,null,null,null,null,null,null,null,null,null,null,"AST1145",24,"BUS2268",3]
[null,null,null,null,null,null,null,null,null,null,null,null,null,null,null,null,null,null,"AST1145L",24,"BUS2269",3]
[null,null,null,null,null,null,null,null,null,null,null,null,null,null,null,null,null,null,"BAK110",10,"BUS2275",3]
[null,null,null,null,null,null,null,null,null,null,null,null,null,null,null,null,null,null,"BAK120",13,"BUS2278",3]
[null,null,null,null,null,null,null,null,null,null,null,null,null,null,null,null,null,null,"BAK130",13,"BUS2285",3]
[null,"Total Extraordinary Considerations",null,null,null,null,null,null,null,null,null,null,null,null,{"$f":"SUM(O106:O115)","v":0},null,null,null,"BIO0020L",16,"BUS2292",3]
[null,null,null,null,null,null,null,null,null,null,null,null,null,null,null,null,null,null,"BIO0030L",16,"BUS2298",3]
[null,"Workload Summary ",null,null,null,null,null,null,null,null,null,null,null,null,null,null,null,null,"BIO1146",48,"CAD1155",3]
[null,null,null,null,null,null,null,null,null,null,null,null,null,null,null,null,null,null,"BIO1146L",24,"CAD1180",3]
[null,"Primary Assignment Workload",null,null,null,null,null,null,null,null,null,null,null,null,"Primary",null,null,null,"BIO1150",24,"CAD2258",3]
[null,"Model Target Range (± 7%)",null,null,null,null,null,null,null,null,null,null,null,0.93,"Base",1.07,null,null,"BIO1150L",12,"CAP1158",3]
[null,"Model Target Hours Range ",null,null,null,null,null,null,null,null,null,null,null,{"$f":"O122*N121","v":1236.9000000000001},{"$f":"O9","v":1330},{"$f":"O122*P121","v":1423.1000000000001},null,null,"BIO1151",54.4,"CEN2269",3]
[null,"Total Primary workload - Calculated (hrs)",null,null,null,null,null,null,null,null,null,{"$f":"IF($O123<$N$122,\"Underload  \"&TRUNC($O122-$O$123)&\" Hours\",IF($O123>$P$122,\"Overload \"&TRUNC($O123-$O$122)&\" Hours\",\"In Range\"))","v":"Underload  1080 Hours"},null,null,{"$f":"O22+O30+O36+O91+O116","v":250},null,null,null,"BIO1152",28.5,"CEN2269L",0]
[null,"Total Primary Workload as % of Model Base",null,null,null,null,null,null,null,null,null,{"$f":"ROUND(($O123/$O$122*100),1)&\"% of Base\"","v":"18.8% of Base"},null,null,{"$f":"(O123/O122)","v":0.18796992481203006},null,null,null,"BIO1152L",14,"CEN3352",3]
[null,null,null,null,null,null,null,null,null,null,null,null,null,null,null,null,null,null,"BIO1155",33.777777777777779,"CEN3352L",0]
[null,"Extra Assignment Workload",null,null,null,null,null,null,null,null,null,null,null,null,null,"Extra",null,null,"BIO1156",34.230769230769234,"CEN3354",3]
[null,"Total Added work (hrs)",null,null,null,null,null,null,null,null,null,{"$f":"IF($P$128<0.1,\"Acceptable Extra \"&TRUNC($P$127)&\" Hours\",IF(AND($P$128>0.1,$P$128<0.15),\"Check Extra \"&TRUNC($P$127)&\" Hours\",\"Excessive Extra \"&TRUNC($P$127)&\" Hours\"))","v":"Acceptable Extra 0 Hours"},null,null,null,{"$f":"P103","v":0},null,null,"BIO1157",16,"CEN3357",3]
[null,"Total Added work as % of Model Base",null,null,null,null,null,null,null,null,null,{"$f":"ROUND(($P127/$O$122*100),1)&\"% of Base\"","v":"0% of Base"},null,null,null,{"$f":"P127/O122","v":0},null,null,"BIO1157L",16,"CEN3369",3]
[null,null,null,null,null,null,null,null,null,null,null,null,null,null,null,null,null,null,"BIO1160",40.545454545454547,"CEN3369L",0]
[null,"Total (Primary + Extra) Workload",null,null,null,null,null,null,null,null,null,null,null,null,null,null,"Total",null,"BIO1160L",18.521739130434781,"CEN3374",3]
[null,"Total (Primary + Added) work",null,null,null,null,null,null,null,null,null,{"$f":"IF($Q131<$N$122,\"Underload  \"&TRUNC($Q130-$O$123)&\" Hours\",IF($Q131>$P$122,\"Overload \"&TRUNC($Q131-$O$122)&\" Hours\",\"In Range\"))","v":{"$error":"#VALUE!"}},null,null,null,null,{"$f":"P127+O123","v":250},null,"BIO1161",44.4,"CEN3379",3]
[null,"Total (Primary + Added) work as % of Model Base",null,null,null,null,null,null,null,null,null,{"$f":"ROUND(($Q131/$O$122*100),1)&\"% of Base\"","v":"18.8% of Base"},null,null,null,null,{"$f":"Q131/O122","v":0.18796992481203006},null,"BIO1161L",18,"CEN3389",3]
[null,null,null,null,null,null,null,null,null,null,null,null,null,null,null,null,null,null,"BIO1162",15.333333333333334,"CEN3389L",0]
[null,null,null,null,null,null,null,null,null,null,null,null,null,null,null,null,null,null,"BIO1162L",11.5,"CEN3390",3]
[null,null,null,null,null,null,null,null,null,null,null,null,null,null,null,null,null,null,"BIO1167",51.272727272727273,"CEN4455",6]
[null,null,null,null,null,null,null,null,null,null,null,null,null,null,null,null,null,null,"BIO1167L",18.307692307692307,"CEN4460",3]
[null,null,null,null,null,null,null,null,null,null,null,null,null,null,null,null,null,null,"BIO1168",72,"CEN4465",3]
[null,null,null,null,null,null,null,null,null,null,null,null,null,null,null,null,null,null,"BIO1168L",18,"CEN4475",3]
[null,null,null,null,"Compare to FA Collective Agreement",null,"Student Contact Hours","Model Total Workld",null,null,null,null,null,null,null,null,null,null,"BIO1169",35,"CEN4480",3]
[null,null,null,"Target Hours (by CA):",{"$f":"L9*K7","v":540},null,{"$f":"F91","v":0},{"$f":"O123","v":250},null,"110% Target:",{"$f":"K141*1.1","v":1463.0000000000002},null,null,null,null,null,null,null,"BIO1169L",16.333333333333332,"CEN4491",6]
[null,null,null,"Actual Contact Hours:",{"$f":"F91*16","v":0},null,"% of FT","% of FT",null,"Model Target:",{"$f":"O9","v":1330},null,null,null,null,null,null,null,"BIO1170",72,"CEN4496",6]
[null,null,null,"% of contract: ",{"$f":"E141/E140","v":0},null,{"$f":"G140/36","v":0},{"$f":"H140/1330","v":0.18796992481203006},null,"90% Target:",{"$f":"K141*0.9","v":1197},null,null,null,null,null,null,null,"BIO1170L",18,"CHM1155",3]
[null,null,null,null,null,null,null,{"$f":"L9","v":540},null,null,null,null,null,null,null,null,null,null,"BIO1172",54.666666666666664,"CHM1155L",0]
[null,null,null,null,null,null,null,null,null,null,null,null,null,null,null,null,null,null,"BIO1172L",18.285714285714285,"CHM2270",3]
[null,null,null,null,null,null,null,null,null,null,null,null,null,null,null,null,null,null,"BIO1175",48,"CHM2270L",0]
[null,null,null,null,null,null,null,null,null,null,null,null,null,null,null,null,null,null,"BIO1175L",18,"CHM4455",3]
[null,null,null,null,null,null,null,null,null,null,null,null,null,null,null,null,null,null,"BIO1180",35,"CHM4455L",0]
[null,null,null,null,null,null,null,null,null,null,null,null,null,null,null,null,null,null,"BIO1180L",17.5,"CIT1152",3]
[null,null,null,null,null,null,null,null,null,null,null,null,null,null,null,null,null,null,"BIO1195",33.333333333333336,"CIT1154",3]
[null,null,null,null,null,null,null,null,null,null,null,null,null,null,null,null,null,null,"BIO20",32,"CIT1156",3]
[null,null,null,null,null,null,null,null,null,null,null,null,null,null,null,null,null,null,"BIO2263",15,"CIT1157",3]
[null,null,null,null,null,null,null,null,null,null,null,null,null,null,null,null,null,null,"BIO2263L",15,"CIT1158",3]
[null,null,null,null,null,null,null,null,null,null,null,null,null,null,null,null,null,null,"BIO2264",15,"CIT1158L",0]
[null,null,null,null,null,null,null,null,null,null,null,null,null,null,null,null,null,null,"BIO2264L",15,"CIT1163",3]
[null,null,null,null,null,null,null,null,null,null,null,null,null,null,null,null,null,null,"BIO30",32,"CIT2255",3]
[null,null,null,null,null,null,null,null,null,null,null,null,null,null,null,null,null,null,"BIO3350",36,"CIT2255L",0]
[null,null,null,null,null,null,null,null,null,null,null,null,null,null,null,null,null,null,"BIO3350L",18,"CIT2259",3]
[null,null,null,null,null,null,null,null,null,null,null,null,null,null,null,null,null,null,"BIO3352",28,"CIT2259L",0]
[null,null,null,null,null,null,null,null,null,null,null,null,null,null,null,null,null,null,"BIO3352L",14,"CIT2260",3]
[null,null,null,null,null,null,null,null,null,null,null,null,null,null,null,null,null,null,"BIO4461",18,"CIT2261",3]
[null,null,null,null,null,null,null,null,null,null,null,null,null,null,null,null,null,null,"BIO4461L",18,"CIT2261L",0]
[null,null,null,null,null,null,null,null,null,null,null,null,null,null,null,null,null,null,"BIO4462",18,"CIT2265",3]
[null,null,null,null,null,null,null,null,null,null,null,null,null,null,null,null,null,null,"BIO4462L",18,"CIT2266",3]
[null,null,null,null,null,null,null,null,null,null,null,null,null,null,null,null,null,null,"BLK1151",30,"CIT2268",3]
[null,null,null,null,null,null,null,null,null,null,null,null,null,null,null,null,null,null,"BLK2251",20,"CIT2270",1.5]
[null,null,null,null,null,null,null,null,null,null,null,null,null,null,null,null,null,null,"BUS1124",36,"CIT2271",3]
[null,null,null,null,null,null,null,null,null,null,null,null,null,null,null,null,null,null,"BUS1166",36,"CIT2275",3]
[null,null,null,null,null,null,null,null,null,null,null,null,null,null,null,null,null,null,"BUS1170",33.882352941176471,"CIT2276",3]
[null,null,null,null,null,null,null,null,null,null,null,null,null,null,null,null,null,null,"BUS1177",32.285714285714285,"CIV2237",3]
[null,null,null,null,null,null,null,null,null,null,null,null,null,null,null,null,null,null,"BUS1185",30,"CIV2253",3]
[null,null,null,null,null,null,null,null,null,null,null,null,null,null,null,null,null,null,"BUS2268",30,"CIV2254",3]
[null,null,null,null,null,null,null,null,null,null,null,null,null,null,null,null,null,null,"BUS2275",33,"CIV2257",3]
[null,null,null,null,null,null,null,null,null,null,null,null,null,null,null,null,null,null,"BUS2276",36,"CIV2258",3]
[null,null,null,null,null,null,null,null,null,null,null,null,null,null,null,null,null,null,"BUS2277",30,"CIV2260",3]
[null,null,null,null,null,null,null,null,null,null,null,null,null,null,null,null,null,null,"BUS2278",42.5,"CIV2260L",0]
[null,null,null,null,null,null,null,null,null,null,null,null,null,null,null,null,null,null,"BUS2281",30,"CIV2263",3]
[null,null,null,null,null,null,null,null,null,null,null,null,null,null,null,null,null,null,"BUS2283",35,"CIV2266",3]
[null,null,null,null,null,null,null,null,null,null,null,null,null,null,null,null,null,null,"BUS2283W",35,"CIV2274",3]
[null,null,null,null,null,null,null,null,null,null,null,null,null,null,null,null,null,null,"BUS2285",25,"CJP1157",3]
[null,null,null,null,null,null,null,null,null,null,null,null,null,null,null,null,null,null,"BUS2285W",25,"CJP1159",3]
[null,null,null,null,null,null,null,null,null,null,null,null,null,null,null,null,null,null,"BUS2286",30,"CJP1160",3]
[null,null,null,null,null,null,null,null,null,null,null,null,null,null,null,null,null,null,"BUS2287",30,"CJP1161",3]
[null,null,null,null,null,null,null,null,null,null,null,null,null,null,null,null,null,null,"BUS2288",33,"CJP1163",3]
[null,null,null,null,null,null,null,null,null,null,null,null,null,null,null,null,null,null,"BUS2288W",33,"CJP1173",3]
[null,null,null,null,null,null,null,null,null,null,null,null,null,null,null,null,null,null,"BUS2290",30,"CJP1178",3]
[null,null,null,null,null,null,null,null,null,null,null,null,null,null,null,null,null,null,"BUS2292",43.333333333333336,"CJP1183",3]
[null,null,null,null,null,null,null,null,null,null,null,null,null,null,null,null,null,null,"BUS2293",35,"CJP1185",3]
[null,null,null,null,null,null,null,null,null,null,null,null,null,null,null,null,null,null,"BUS2293W",35,"CJP1186",3]
[null,null,null,null,null,null,null,null,null,null,null,null,null,null,null,null,null,null,"BUS2298",33.333333333333336,"CJP1188",3]
[null,null,null,null,null,null,null,null,null,null,null,null,null,null,null,null,null,null,"BUS2298W",33.333333333333336,"CJP2252",3]
[null,null,null,null,null,null,null,null,null,null,null,null,null,null,null,null,null,null,"CAD1160",25.714285714285715,"CJP2255",3]
[null,null,null,null,null,null,null,null,null,null,null,null,null,null,null,null,null,null,"CAP1158",40,"CJP2267",3]
[null,null,null,null,null,null,null,null,null,null,null,null,null,null,null,null,null,null,"CEN2255",36,"CJP2269",3]
[null,null,null,null,null,null,null,null,null,null,null,null,null,null,null,null,null,null,"CEN2259",59,"CJP2269L",0]
[null,null,null,null,null,null,null,null,null,null,null,null,null,null,null,null,null,null,"CEN2259L",19.666666666666668,"CJP2278",3]
[null,null,null,null,null,null,null,null,null,null,null,null,null,null,null,null,null,null,"CEN2267",59,"CJP2280",3]
[null,null,null,null,null,null,null,null,null,null,null,null,null,null,null,null,null,null,"CEN2269",59,"CJP2281",3]
[null,null,null,null,null,null,null,null,null,null,null,null,null,null,null,null,null,null,"CEN2269L",20,"CJP2283",3]
[null,null,null,null,null,null,null,null,null,null,null,null,null,null,null,null,null,null,"CEN3352",30,"CJP2284",3]
[null,null,null,null,null,null,null,null,null,null,null,null,null,null,null,null,null,null,"CEN3352L",15,"CJP2287",3]
[null,null,null,null,null,null,null,null,null,null,null,null,null,null,null,null,null,null,"CEN3354",40,"CJP2292",3]
[null,null,null,null,null,null,null,null,null,null,null,null,null,null,null,null,null,null,"CEN3357",40,"CMM1153",3]
[null,null,null,null,null,null,null,null,null,null,null,null,null,null,null,null,null,null,"CEN3369",40,"CMM1156",3]
[null,null,null,null,null,null,null,null,null,null,null,null,null,null,null,null,null,null,"CEN3369L",20,"CMM1163",3]
[null,null,null,null,null,null,null,null,null,null,null,null,null,null,null,null,null,null,"CEN3374",40,"CMM1165",3]
[null,null,null,null,null,null,null,null,null,null,null,null,null,null,null,null,null,null,"CEN3379",20,"CMM1185",3]
[null,null,null,null,null,null,null,null,null,null,null,null,null,null,null,null,null,null,"CEN3389",30,"CMM2282",1.5]
[null,null,null,null,null,null,null,null,null,null,null,null,null,null,null,null,null,null,"CEN3389L",15,"CMM2283",1.5]
[null,null,null,null,null,null,null,null,null,null,null,null,null,null,null,null,null,null,"CEN3390",40,"CMM2285",3]
[null,null,null,null,null,null,null,null,null,null,null,null,null,null,null,null,null,null,"CEN4480W",30,"CMM2288",3]
[null,null,null,null,null,null,null,null,null,null,null,null,null,null,null,null,null,null,"CEN4491W",30,"CMM2291",3]
[null,null,null,null,null,null,null,null,null,null,null,null,null,null,null,null,null,null,"CEN4496",30,"CMM2292",3]
[null,null,null,null,null,null,null,null,null,null,null,null,null,null,null,null,null,null,"CHM0020L",16,"CMM2293",3]
[null,null,null,null,null,null,null,null,null,null,null,null,null,null,null,null,null,null,"CHM0030L",16,"COL1130",3]
[null,null,null,null,null,null,null,null,null,null,null,null,null,null,null,null,null,null,"CHM1155",21,"COM1112",1.5]
[null,null,null,null,null,null,null,null,null,null,null,null,null,null,null,null,null,null,"CHM1155L",21,"COM1137",1.5]
[null,null,null,null,null,null,null,null,null,null,null,null,null,null,null,null,null,null,"CHM20",32,"COM1152",3]
[null,null,null,null,null,null,null,null,null,null,null,null,null,null,null,null,null,null,"CHM2255",21,"COM1157",3]
[null,null,null,null,null,null,null,null,null,null,null,null,null,null,null,null,null,null,"CHM2255L",21,"COM1158",1.5]
[null,null,null,null,null,null,null,null,null,null,null,null,null,null,null,null,null,null,"CHM30",36,"COM1162",3]
[null,null,null,null,null,null,null,null,null,null,null,null,null,null,null,null,null,null,"CHM3350",36,"COM1165",3]
[null,null,null,null,null,null,null,null,null,null,null,null,null,null,null,null,null,null,"CHM3350L",18,"COM1165T",0]
[null,null,null,null,null,null,null,null,null,null,null,null,null,null,null,null,null,null,"CHM4455",20,"COM1170",3]
[null,null,null,null,null,null,null,null,null,null,null,null,null,null,null,null,null,null,"CHM4455L",20,"COM1177",3]
[null,null,null,null,null,null,null,null,null,null,null,null,null,null,null,null,null,null,"CIT1152",15,"COM2263",3]
[null,null,null,null,null,null,null,null,null,null,null,null,null,null,null,null,null,null,"CIT1154",30,"COM2275",3]
[null,null,null,null,null,null,null,null,null,null,null,null,null,null,null,null,null,null,"CIT1156",30,"COM2275T",0]
[null,null,null,null,null,null,null,null,null,null,null,null,null,null,null,null,null,null,"CIT1157",30,"COM4460",3]
[null,null,null,null,null,null,null,null,null,null,null,null,null,null,null,null,null,null,"CIT1158",30,"CON1133",3]
[null,null,null,null,null,null,null,null,null,null,null,null,null,null,null,null,null,null,"CIT1158L",22.5,"CON1133L",0]
[null,null,null,null,null,null,null,null,null,null,null,null,null,null,null,null,null,null,"CIT1163",30,"CON1140",3]
[null,null,null,null,null,null,null,null,null,null,null,null,null,null,null,null,null,null,"CIT2255",72,"CON1150",3]
[null,null,null,null,null,null,null,null,null,null,null,null,null,null,null,null,null,null,"CIT2255L",24,"CON1155",3]
[null,null,null,null,null,null,null,null,null,null,null,null,null,null,null,null,null,null,"CIT2259",36,"CON2209",3]
[null,null,null,null,null,null,null,null,null,null,null,null,null,null,null,null,null,null,"CIT2259L",24,"CON2252",3]
[null,null,null,null,null,null,null,null,null,null,null,null,null,null,null,null,null,null,"CIT2260",72,"CON2255",3]
[null,null,null,null,null,null,null,null,null,null,null,null,null,null,null,null,null,null,"CIT2262",36,"CON2256",3]
[null,null,null,null,null,null,null,null,null,null,null,null,null,null,null,null,null,null,"CIT2263",24,"COR3385",3]
[null,null,null,null,null,null,null,null,null,null,null,null,null,null,null,null,null,null,"CIT2265",24,"COR4450",3]
[null,null,null,null,null,null,null,null,null,null,null,null,null,null,null,null,null,null,"CIT2268",30,"COR4456",3]
[null,null,null,null,null,null,null,null,null,null,null,null,null,null,null,null,null,null,"CIT2269",36,"COR4460",3]
[null,null,null,null,null,null,null,null,null,null,null,null,null,null,null,null,null,null,"CIT2270",72,"COR4466",3]
[null,null,null,null,null,null,null,null,null,null,null,null,null,null,null,null,null,null,"CIT2275",36,"COR4467",3]
[null,null,null,null,null,null,null,null,null,null,null,null,null,null,null,null,null,null,"CIT2275L",36,"COR4470",3]
[null,null,null,null,null,null,null,null,null,null,null,null,null,null,null,null,null,null,"CIT2276",36,"COR4471",3]
[null,null,null,null,null,null,null,null,null,null,null,null,null,null,null,null,null,null,"CIT2276L",36,"COR4472",3]
[null,null,null,null,null,null,null,null,null,null,null,null,null,null,null,null,null,null,"CIV2256",20,"COR4473",3]
[null,null,null,null,null,null,null,null,null,null,null,null,null,null,null,null,null,null,"CIV2256L",20,"CPL1150",3]
[null,null,null,null,null,null,null,null,null,null,null,null,null,null,null,null,null,null,"CIV2257",20,"CPU1150",1.5]
[null,null,null,null,null,null,null,null,null,null,null,null,null,null,null,null,null,null,"CIV2260",20,"CPU1151",1.5]
[null,null,null,null,null,null,null,null,null,null,null,null,null,null,null,null,null,null,"CIV2260L",20,"CPU1165",3]
[null,null,null,null,null,null,null,null,null,null,null,null,null,null,null,null,null,null,"CIV2262",26,"CPU2248",3]
[null,null,null,null,null,null,null,null,null,null,null,null,null,null,null,null,null,null,"CIV2271",20,"CPU2248T",0]
[null,null,null,null,null,null,null,null,null,null,null,null,null,null,null,null,null,null,"CIV2274",20,"CPU2251",1.5]
[null,null,null,null,null,null,null,null,null,null,null,null,null,null,null,null,null,null,"CIV2275",20,"CPU2254",3]
[null,null,null,null,null,null,null,null,null,null,null,null,null,null,null,null,null,null,"CIV2275L",20,"CPU2255",3]
[null,null,null,null,null,null,null,null,null,null,null,null,null,null,null,null,null,null,"CJP1157",25.647058823529413,"CPU2275",3]
[null,null,null,null,null,null,null,null,null,null,null,null,null,null,null,null,null,null,"CJP1159",26.916666666666668,"CSP1140",6]
[null,null,null,null,null,null,null,null,null,null,null,null,null,null,null,null,null,null,"CJP1160",28.90909090909091,"CSP1150",3]
[null,null,null,null,null,null,null,null,null,null,null,null,null,null,null,null,null,null,"CJP1177",25,"CSP1160",6]
[null,null,null,null,null,null,null,null,null,null,null,null,null,null,null,null,null,null,"CJP1185",28.875,"CUL1115",3]
[null,null,null,null,null,null,null,null,null,null,null,null,null,null,null,null,null,null,"CJP2278",24.222222222222221,"CUL1116",3]
[null,null,null,null,null,null,null,null,null,null,null,null,null,null,null,null,null,null,"CJP2280",28,"CUL1117",3]
[null,null,null,null,null,null,null,null,null,null,null,null,null,null,null,null,null,null,"CJP2281",24.444444444444443,"CUL1118",6]
[null,null,null,null,null,null,null,null,null,null,null,null,null,null,null,null,null,null,"CJP2287",23.666666666666668,"CUL1120",6]
[null,null,null,null,null,null,null,null,null,null,null,null,null,null,null,null,null,null,"CJP2289",25.166666666666668,"CUL1121",6]
[null,null,null,null,null,null,null,null,null,null,null,null,null,null,null,null,null,null,"CJP2293",24.666666666666668,"CUL1122",3]
[null,null,null,null,null,null,null,null,null,null,null,null,null,null,null,null,null,null,"CJP2294",22.666666666666668,"CUL1127",3]
[null,null,null,null,null,null,null,null,null,null,null,null,null,null,null,null,null,null,"CJP2295",24,"CUL2201",6]
[null,null,null,null,null,null,null,null,null,null,null,null,null,null,null,null,null,null,"CJP2296",24,"CUL2207",6]
[null,null,null,null,null,null,null,null,null,null,null,null,null,null,null,null,null,null,"CLA1100",36,"CUL2208",6]
[null,null,null,null,null,null,null,null,null,null,null,null,null,null,null,null,null,null,"CLA1100L",36,"CUL2212",6]
[null,null,null,null,null,null,null,null,null,null,null,null,null,null,null,null,null,null,"CLA1101",36,"CUL2213",3]
[null,null,null,null,null,null,null,null,null,null,null,null,null,null,null,null,null,null,"CLA1101L",36,"CUL2218",1.5]
[null,null,null,null,null,null,null,null,null,null,null,null,null,null,null,null,null,null,"CLA1101W",36,"DCE2255",3]
[null,null,null,null,null,null,null,null,null,null,null,null,null,null,null,null,null,null,"CLA1102",36,"DCM1150",3]
[null,null,null,null,null,null,null,null,null,null,null,null,null,null,null,null,null,null,"CLA1102L",36,"DCM1150L",0]
[null,null,null,null,null,null,null,null,null,null,null,null,null,null,null,null,null,null,"CLA1103",36,"DCM1152",3]
[null,null,null,null,null,null,null,null,null,null,null,null,null,null,null,null,null,null,"CLA1103L",36,"DCM1153",3]
[null,null,null,null,null,null,null,null,null,null,null,null,null,null,null,null,null,null,"CLA1104",36,"DCM1153L",0]
[null,null,null,null,null,null,null,null,null,null,null,null,null,null,null,null,null,null,"CLA1104L",36,"DCM1154",3]
[null,null,null,null,null,null,null,null,null,null,null,null,null,null,null,null,null,null,"CLA1105",36,"DCM1157",3]
[null,null,null,null,null,null,null,null,null,null,null,null,null,null,null,null,null,null,"CLA1105L",36,"DCM1159",3]
[null,null,null,null,null,null,null,null,null,null,null,null,null,null,null,null,null,null,"CLA1105W",36,"DCM1163",3]
[null,null,null,null,null,null,null,null,null,null,null,null,null,null,null,null,null,null,"CLA1106",36,"DCM1163L",0]
[null,null,null,null,null,null,null,null,null,null,null,null,null,null,null,null,null,null,"CLA1106L",36,"DCM1163T",0]
[null,null,null,null,null,null,null,null,null,null,null,null,null,null,null,null,null,null,"CLA1107",36,"DCM1165",3]
[null,null,null,null,null,null,null,null,null,null,null,null,null,null,null,null,null,null,"CLA1107L",36,"DCM1165L",0]
[null,null,null,null,null,null,null,null,null,null,null,null,null,null,null,null,null,null,"CMM1153",40,"DCM1168",3]
[null,null,null,null,null,null,null,null,null,null,null,null,null,null,null,null,null,null,"CMM1156",40,"DCM1170",1.5]
[null,null,null,null,null,null,null,null,null,null,null,null,null,null,null,null,null,null,"CMM1163",40,"DCM1171",1.5]
[null,null,null,null,null,null,null,null,null,null,null,null,null,null,null,null,null,null,"CMM1165",40,"DCM2250",3]
[null,null,null,null,null,null,null,null,null,null,null,null,null,null,null,null,null,null,"CMM1185",30,"DCM2251",3]
[null,null,null,null,null,null,null,null,null,null,null,null,null,null,null,null,null,null,"CMM2284",36,"DCM2252",6]
[null,null,null,null,null,null,null,null,null,null,null,null,null,null,null,null,null,null,"CMM2285",36,"DCM2253",3]
[null,null,null,null,null,null,null,null,null,null,null,null,null,null,null,null,null,null,"CMM2288",36,"DCM2254",3]
[null,null,null,null,null,null,null,null,null,null,null,null,null,null,null,null,null,null,"CMM2291",36,"DCM2255",3]
[null,null,null,null,null,null,null,null,null,null,null,null,null,null,null,null,null,null,"CMM2292",36,"DCM2256",3]
[null,null,null,null,null,null,null,null,null,null,null,null,null,null,null,null,null,null,"CMM2293",36,"DCM2257",3]
[null,null,null,null,null,null,null,null,null,null,null,null,null,null,null,null,null,null,"COK110",12,"DCM2260",3]
[null,null,null,null,null,null,null,null,null,null,null,null,null,null,null,null,null,null,"COK120",8,"DCM2270",3]
[null,null,null,null,null,null,null,null,null,null,null,null,null,null,null,null,null,null,"COK130",12,"DCM2271",3]
[null,null,null,null,null,null,null,null,null,null,null,null,null,null,null,null,null,null,"COL1130",26.25,"DCM2272",3]
[null,null,null,null,null,null,null,null,null,null,null,null,null,null,null,null,null,null,"COM1137",36,"DCM2273",3]
[null,null,null,null,null,null,null,null,null,null,null,null,null,null,null,null,null,null,"COM1162",32.483870967741936,"DCM2274",3]
[null,null,null,null,null,null,null,null,null,null,null,null,null,null,null,null,null,null,"COM1164",45.6,"DCM2275",3]
[null,null,null,null,null,null,null,null,null,null,null,null,null,null,null,null,null,null,"COM1165",27.722222222222221,"DCM2276",3]
[null,null,null,null,null,null,null,null,null,null,null,null,null,null,null,null,null,null,"COM1170",29.333333333333332,"DCM2277",6]
[null,null,null,null,null,null,null,null,null,null,null,null,null,null,null,null,null,null,"COM2263",36,"DCM2280",3]
[null,null,null,null,null,null,null,null,null,null,null,null,null,null,null,null,null,null,"COM3350",15,"DES1155",3]
[null,null,null,null,null,null,null,null,null,null,null,null,null,null,null,null,null,null,"CON1162",30.666666666666668,"DES1156",3]
[null,null,null,null,null,null,null,null,null,null,null,null,null,null,null,null,null,null,"CON1165",44,"DRF1153",3]
[null,null,null,null,null,null,null,null,null,null,null,null,null,null,null,null,null,null,"CON1165L",22,"DRF1160",3]
[null,null,null,null,null,null,null,null,null,null,null,null,null,null,null,null,null,null,"CON1180",44,"DRF1165",3]
[null,null,null,null,null,null,null,null,null,null,null,null,null,null,null,null,null,null,"CON2255",20,"DRF2244",3]
[null,null,null,null,null,null,null,null,null,null,null,null,null,null,null,null,null,null,"CON2260",20,"DRF2261",3]
[null,null,null,null,null,null,null,null,null,null,null,null,null,null,null,null,null,null,"COR1180",25.333333333333332,"DRF2264",3]
[null,null,null,null,null,null,null,null,null,null,null,null,null,null,null,null,null,null,"COR2253",27,"DRF2265",3]
[null,null,null,null,null,null,null,null,null,null,null,null,null,null,null,null,null,null,"COR2262",24,"DRF2268",3]
[null,null,null,null,null,null,null,null,null,null,null,null,null,null,null,null,null,null,"COR2277",17.5,"DRF2271",3]
[null,null,null,null,null,null,null,null,null,null,null,null,null,null,null,null,null,null,"CPL1150W",16,"DRF2272",3]
[null,null,null,null,null,null,null,null,null,null,null,null,null,null,null,null,null,null,"CPL2250",30,"DRF2272T",0]
[null,null,null,null,null,null,null,null,null,null,null,null,null,null,null,null,null,null,"CPL2250W",30,"DRF2273",3]
[null,null,null,null,null,null,null,null,null,null,null,null,null,null,null,null,null,null,"CPU1151",28.5,"DRF2274",3]
[null,null,null,null,null,null,null,null,null,null,null,null,null,null,null,null,null,null,"CPU1160",24,"EAP0096",6]
[null,null,null,null,null,null,null,null,null,null,null,null,null,null,null,null,null,null,"CPU1165",31.333333333333332,"EAP0097",3]
[null,null,null,null,null,null,null,null,null,null,null,null,null,null,null,null,null,null,"CPU2253",23,"EAP0098",3]
[null,null,null,null,null,null,null,null,null,null,null,null,null,null,null,null,null,null,"CPU2254",42,"EAP1104",3]
[null,null,null,null,null,null,null,null,null,null,null,null,null,null,null,null,null,null,"CPU2275",10,"ECN1180",3]
[null,null,null,null,null,null,null,null,null,null,null,null,null,null,null,null,null,null,"CRP110",15.5,"ECN2253",3]
[null,null,null,null,null,null,null,null,null,null,null,null,null,null,null,null,null,null,"CRP120",16,"ENF1135",3]
[null,null,null,null,null,null,null,null,null,null,null,null,null,null,null,null,null,null,"CRP130",16,"ENF1150",3]
[null,null,null,null,null,null,null,null,null,null,null,null,null,null,null,null,null,null,"CRP140",16,"ENF1155",3]
[null,null,null,null,null,null,null,null,null,null,null,null,null,null,null,null,null,null,"CSP1142W",18,"ENF1155L",0]
[null,null,null,null,null,null,null,null,null,null,null,null,null,null,null,null,null,null,"CSP1150",32.666666666666664,"ENF1158",3]
[null,null,null,null,null,null,null,null,null,null,null,null,null,null,null,null,null,null,"CSP1160",18,"ENF1158L",0]
[null,null,null,null,null,null,null,null,null,null,null,null,null,null,null,null,null,null,"CUL2201",27,"ENF1161",3]
[null,null,null,null,null,null,null,null,null,null,null,null,null,null,null,null,null,null,"CUL2207",27,"ENF1161L",0]
[null,null,null,null,null,null,null,null,null,null,null,null,null,null,null,null,null,null,"CUL2208",27,"ENF1168",3]
[null,null,null,null,null,null,null,null,null,null,null,null,null,null,null,null,null,null,"CUL2212",27,"ENF1168L",0]
[null,null,null,null,null,null,null,null,null,null,null,null,null,null,null,null,null,null,"CUL2213",27,"ENG0070",5]
[null,null,null,null,null,null,null,null,null,null,null,null,null,null,null,null,null,null,"CYC1158",35,"ENG0080",5]
[null,null,null,null,null,null,null,null,null,null,null,null,null,null,null,null,null,null,"CYC1163",34,"ENG0095",5]
[null,null,null,null,null,null,null,null,null,null,null,null,null,null,null,null,null,null,"CYC1169",35,"ENG1142",1.5]
[null,null,null,null,null,null,null,null,null,null,null,null,null,null,null,null,null,null,"CYC1173",35,"ENG1146",3]
[null,null,null,null,null,null,null,null,null,null,null,null,null,null,null,null,null,null,"CYC1175",30,"ENG1150",3]
[null,null,null,null,null,null,null,null,null,null,null,null,null,null,null,null,null,null,"CYC1178W",40,"ENG1154",3]
[null,null,null,null,null,null,null,null,null,null,null,null,null,null,null,null,null,null,"CYC1180",24,"ENG1155",3]
[null,null,null,null,null,null,null,null,null,null,null,null,null,null,null,null,null,null,"CYC1194",36,"ENG1156",3]
[null,null,null,null,null,null,null,null,null,null,null,null,null,null,null,null,null,null,"CYC2251",50,"ENG1165",3]
[null,null,null,null,null,null,null,null,null,null,null,null,null,null,null,null,null,null,"CYC2253",50,"ENG1168",3]
[null,null,null,null,null,null,null,null,null,null,null,null,null,null,null,null,null,null,"CYC2255W",25,"ENG1175",3]
[null,null,null,null,null,null,null,null,null,null,null,null,null,null,null,null,null,null,"CYC2260",50,"ENG1180",3]
[null,null,null,null,null,null,null,null,null,null,null,null,null,null,null,null,null,null,"CYC2269",50,"ENG1190",3]
[null,null,null,null,null,null,null,null,null,null,null,null,null,null,null,null,null,null,"CYC2272",25,"ENG2260",3]
[null,null,null,null,null,null,null,null,null,null,null,null,null,null,null,null,null,null,"CYC2280",25,"ENG2285",3]
[null,null,null,null,null,null,null,null,null,null,null,null,null,null,null,null,null,null,"CYC2285W",33,"ENG2290",3]
[null,null,null,null,null,null,null,null,null,null,null,null,null,null,null,null,null,null,"DCM1150",40,"ENV2255",3]
[null,null,null,null,null,null,null,null,null,null,null,null,null,null,null,null,null,null,"DCM1150L",20,"ENV2265",3]
[null,null,null,null,null,null,null,null,null,null,null,null,null,null,null,null,null,null,"DCM1159",40,"ENV2265L",0]
[null,null,null,null,null,null,null,null,null,null,null,null,null,null,null,null,null,null,"DCM1160",40,"ENV2275",3]
[null,null,null,null,null,null,null,null,null,null,null,null,null,null,null,null,null,null,"DCM1161",40,"ENV2275L",0]
[null,null,null,null,null,null,null,null,null,null,null,null,null,null,null,null,null,null,"DCM1161L",20,"ENV2280",3]
[null,null,null,null,null,null,null,null,null,null,null,null,null,null,null,null,null,null,"DCM1162",40,"ENV2280L",0]
[null,null,null,null,null,null,null,null,null,null,null,null,null,null,null,null,null,null,"DCM1162L",20,"ENV2290",3]
[null,null,null,null,null,null,null,null,null,null,null,null,null,null,null,null,null,null,"DCM1164",20,"ENV2290L",0]
[null,null,null,null,null,null,null,null,null,null,null,null,null,null,null,null,null,null,"DCM1166",40,"ENV2297",3]
[null,null,null,null,null,null,null,null,null,null,null,null,null,null,null,null,null,null,"DCM1166L",20,"ENV2297L",0]
[null,null,null,null,null,null,null,null,null,null,null,null,null,null,null,null,null,null,"DCM1167",30,"ENV3381",3]
[null,null,null,null,null,null,null,null,null,null,null,null,null,null,null,null,null,null,"DCM1169",40,"ENV3381L",0]
[null,null,null,null,null,null,null,null,null,null,null,null,null,null,null,null,null,null,"DCM1169L",30,"ENV3383",3]
[null,null,null,null,null,null,null,null,null,null,null,null,null,null,null,null,null,null,"DCM1172",40,"ENV3383L",0]
[null,null,null,null,null,null,null,null,null,null,null,null,null,null,null,null,null,null,"DCM1172L",28.571428571428573,"ENV3397",3]
[null,null,null,null,null,null,null,null,null,null,null,null,null,null,null,null,null,null,"DCM1173",40,"ENV3397L",0]
[null,null,null,null,null,null,null,null,null,null,null,null,null,null,null,null,null,null,"DCM1173L",20,"ESL0035",3]
[null,null,null,null,null,null,null,null,null,null,null,null,null,null,null,null,null,null,"DCM2258",26,"ESL0036",3]
[null,null,null,null,null,null,null,null,null,null,null,null,null,null,null,null,null,null,"DCM2261",26,"ESL0037",3]
[null,null,null,null,null,null,null,null,null,null,null,null,null,null,null,null,null,null,"DCM2261L",36,"ESL0038",3]
[null,null,null,null,null,null,null,null,null,null,null,null,null,null,null,null,null,null,"DCM2262",26,"ESL0045",3]
[null,null,null,null,null,null,null,null,null,null,null,null,null,null,null,null,null,null,"DCM2262L",19.5,"ESL0046",3]
[null,null,null,null,null,null,null,null,null,null,null,null,null,null,null,null,null,null,"DCM2266",36,"ESL0047",3]
[null,null,null,null,null,null,null,null,null,null,null,null,null,null,null,null,null,null,"DCM2266L",26,"ESL0048",3]
[null,null,null,null,null,null,null,null,null,null,null,null,null,null,null,null,null,null,"DCM2268",26,"ESL0055",3]
[null,null,null,null,null,null,null,null,null,null,null,null,null,null,null,null,null,null,"DCM2269",26,"ESL0056",3]
[null,null,null,null,null,null,null,null,null,null,null,null,null,null,null,null,null,null,"DCM2269L",19.5,"ESL0057",3]
[null,null,null,null,null,null,null,null,null,null,null,null,null,null,null,null,null,null,"DCM2278",26,"ESL0058",3]
[null,null,null,null,null,null,null,null,null,null,null,null,null,null,null,null,null,null,"DCM2279",26,"ESL0065",3]
[null,null,null,null,null,null,null,null,null,null,null,null,null,null,null,null,null,null,"DCM2282",26,"ESL0066",3]
[null,null,null,null,null,null,null,null,null,null,null,null,null,null,null,null,null,null,"DCM2284",15,"ESL0067",3]
[null,null,null,null,null,null,null,null,null,null,null,null,null,null,null,null,null,null,"DCM2284L",14.5,"ESL0068",3]
[null,null,null,null,null,null,null,null,null,null,null,null,null,null,null,null,null,null,"DCM2286",26,"ESL0075",3]
[null,null,null,null,null,null,null,null,null,null,null,null,null,null,null,null,null,null,"DCM2289",9,"ESL0076",3]
[null,null,null,null,null,null,null,null,null,null,null,null,null,null,null,null,null,null,"DCM2289L",9,"ESL0077",3]
[null,null,null,null,null,null,null,null,null,null,null,null,null,null,null,null,null,null,"DCM2296",14,"ESL0078",3]
[null,null,null,null,null,null,null,null,null,null,null,null,null,null,null,null,null,null,"DCM2296L",8,"ESL0085",3]
[null,null,null,null,null,null,null,null,null,null,null,null,null,null,null,null,null,null,"DES1155",40,"ESL0086",3]
[null,null,null,null,null,null,null,null,null,null,null,null,null,null,null,null,null,null,"DES1156",40,"ESL0087",3]
[null,null,null,null,null,null,null,null,null,null,null,null,null,null,null,null,null,null,"EAP96",20,"ESL0088",3]
[null,null,null,null,null,null,null,null,null,null,null,null,null,null,null,null,null,null,"EAP97",20,"ESL0095",3]
[null,null,null,null,null,null,null,null,null,null,null,null,null,null,null,null,null,null,"EAP98",20,"ESL0096",3]
[null,null,null,null,null,null,null,null,null,null,null,null,null,null,null,null,null,null,"ECE1150",33,"ESL0097",3]
[null,null,null,null,null,null,null,null,null,null,null,null,null,null,null,null,null,null,"ECE1151",32.75,"ESL0098",3]
[null,null,null,null,null,null,null,null,null,null,null,null,null,null,null,null,null,null,"ECE1154",35,"ETS1151",3]
[null,null,null,null,null,null,null,null,null,null,null,null,null,null,null,null,null,null,"ECE1154L",26,"FSP1150",3]
[null,null,null,null,null,null,null,null,null,null,null,null,null,null,null,null,null,null,"ECE1155",25.428571428571427,"FSP1151",1.5]
[null,null,null,null,null,null,null,null,null,null,null,null,null,null,null,null,null,null,"ECE1156",30.4,"FSP1152",3]
[null,null,null,null,null,null,null,null,null,null,null,null,null,null,null,null,null,null,"ECE1156L",25,"FSP1153",1.5]
[null,null,null,null,null,null,null,null,null,null,null,null,null,null,null,null,null,null,"ECE1162",34.333333333333336,"FSP1155",1.5]
[null,null,null,null,null,null,null,null,null,null,null,null,null,null,null,null,null,null,"ECE1162L",27,"FSP1160",3]
[null,null,null,null,null,null,null,null,null,null,null,null,null,null,null,null,null,null,"ECE1168",31,"FSP1161",1.5]
[null,null,null,null,null,null,null,null,null,null,null,null,null,null,null,null,null,null,"ECE1180W",22,"FSP1162",3]
[null,null,null,null,null,null,null,null,null,null,null,null,null,null,null,null,null,null,"ECE1181W",22.4,"FSP1163",3]
[null,null,null,null,null,null,null,null,null,null,null,null,null,null,null,null,null,null,"ECE1185",24,"FSP1164",3]
[null,null,null,null,null,null,null,null,null,null,null,null,null,null,null,null,null,null,"ECE1185W",24,"FSP1170",6]
[null,null,null,null,null,null,null,null,null,null,null,null,null,null,null,null,null,null,"ECE2250",28,"FSP2250",3]
[null,null,null,null,null,null,null,null,null,null,null,null,null,null,null,null,null,null,"ECE2254",24,"FSP2251",1.5]
[null,null,null,null,null,null,null,null,null,null,null,null,null,null,null,null,null,null,"ECE2255",29,"FSP2252",3]
[null,null,null,null,null,null,null,null,null,null,null,null,null,null,null,null,null,null,"ECE2256",34,"FSP2253",3]
[null,null,null,null,null,null,null,null,null,null,null,null,null,null,null,null,null,null,"ECE2260",28,"FSP2254",1.5]
[null,null,null,null,null,null,null,null,null,null,null,null,null,null,null,null,null,null,"ECE2262",24,"FSP2255",1.5]
[null,null,null,null,null,null,null,null,null,null,null,null,null,null,null,null,null,null,"ECE2263",25,"FSP2256",1.5]
[null,null,null,null,null,null,null,null,null,null,null,null,null,null,null,null,null,null,"ECE2264",28,"FSP2260",3]
[null,null,null,null,null,null,null,null,null,null,null,null,null,null,null,null,null,null,"ECE2280W",12.5,"FSP2261",6]
[null,null,null,null,null,null,null,null,null,null,null,null,null,null,null,null,null,null,"ECE2281W",12.5,"FSP2262",3]
[null,null,null,null,null,null,null,null,null,null,null,null,null,null,null,null,null,null,"ECN1180",35.5,"FSP2263",3]
[null,null,null,null,null,null,null,null,null,null,null,null,null,null,null,null,null,null,"ECN2253",35.5,"FSP2268",6]
[null,null,null,null,null,null,null,null,null,null,null,null,null,null,null,null,null,null,"EDD1150",24,"FWK2250",3]
[null,null,null,null,null,null,null,null,null,null,null,null,null,null,null,null,null,null,"EDD1160",30.666666666666668,"FWK2253",3]
[null,null,null,null,null,null,null,null,null,null,null,null,null,null,null,null,null,null,"EDD1170",24,"GEO1150",3]
[null,null,null,null,null,null,null,null,null,null,null,null,null,null,null,null,null,null,"EDD2255",28,"GEO1150L",0]
[null,null,null,null,null,null,null,null,null,null,null,null,null,null,null,null,null,null,"EDD2268",28,"GEO1156",3]
[null,null,null,null,null,null,null,null,null,null,null,null,null,null,null,null,null,null,"EDD2270",28,"GEO1156L",0]
[null,null,null,null,null,null,null,null,null,null,null,null,null,null,null,null,null,null,"EDD2275",28,"GEO1160",3]
[null,null,null,null,null,null,null,null,null,null,null,null,null,null,null,null,null,null,"EDD2275L",28,"GEO1165",3]
[null,null,null,null,null,null,null,null,null,null,null,null,null,null,null,null,null,null,"EDD2280",28,"GEO1165L",0]
[null,null,null,null,null,null,null,null,null,null,null,null,null,null,null,null,null,null,"EDD2285",28,"GEO1166",3]
[null,null,null,null,null,null,null,null,null,null,null,null,null,null,null,null,null,null,"EDD2290",28,"GEO1166L",0]
[null,null,null,null,null,null,null,null,null,null,null,null,null,null,null,null,null,null,"EDD2290T",28,"GEO1170",3]
[null,null,null,null,null,null,null,null,null,null,null,null,null,null,null,null,null,null,"EDD2295",28,"GEO1182",3]
[null,null,null,null,null,null,null,null,null,null,null,null,null,null,null,null,null,null,"EDU1153",28,"GEO2253",3]
[null,null,null,null,null,null,null,null,null,null,null,null,null,null,null,null,null,null,"EDU1155",28,"GEO2255",3]
[null,null,null,null,null,null,null,null,null,null,null,null,null,null,null,null,null,null,"EDU1156",28,"GEO2255T",0]
[null,null,null,null,null,null,null,null,null,null,null,null,null,null,null,null,null,null,"EDU1162",26,"GEO2256",1.5]
[null,null,null,null,null,null,null,null,null,null,null,null,null,null,null,null,null,null,"EDU1163",27,"GEO2260",3]
[null,null,null,null,null,null,null,null,null,null,null,null,null,null,null,null,null,null,"EDU1165",30,"GEO2276",3]
[null,null,null,null,null,null,null,null,null,null,null,null,null,null,null,null,null,null,"EDU2250",20,"GEO2276L",0]
[null,null,null,null,null,null,null,null,null,null,null,null,null,null,null,null,null,null,"EDU2252",24,"GEO2280",3]
[null,null,null,null,null,null,null,null,null,null,null,null,null,null,null,null,null,null,"EDU2258",24,"GEO2290",3]
[null,null,null,null,null,null,null,null,null,null,null,null,null,null,null,null,null,null,"ELT112",21.333333333333332,"GEO3380",3]
[null,null,null,null,null,null,null,null,null,null,null,null,null,null,null,null,null,null,"ELT122",16,"GEO3380L",0]
[null,null,null,null,null,null,null,null,null,null,null,null,null,null,null,null,null,null,"ELT132",16,"GEO3382",3]
[null,null,null,null,null,null,null,null,null,null,null,null,null,null,null,null,null,null,"ELT142",21.714285714285715,"GEO3382L",0]
[null,null,null,null,null,null,null,null,null,null,null,null,null,null,null,null,null,null,"ENF1166",30.666666666666668,"HCA1103",1.5]
[null,null,null,null,null,null,null,null,null,null,null,null,null,null,null,null,null,null,"ENF1170",44,"HCA1103L",0]
[null,null,null,null,null,null,null,null,null,null,null,null,null,null,null,null,null,null,"ENF1170L",22,"HCA1105",1.5]
[null,null,null,null,null,null,null,null,null,null,null,null,null,null,null,null,null,null,"ENF1180",24,"HCA1107",3]
[null,null,null,null,null,null,null,null,null,null,null,null,null,null,null,null,null,null,"ENF1180L",12,"HCA1111",1.5]
[null,null,null,null,null,null,null,null,null,null,null,null,null,null,null,null,null,null,"ENF2250",24,"HCA1112",3]
[null,null,null,null,null,null,null,null,null,null,null,null,null,null,null,null,null,null,"ENG10",20,"HCA1112L",0]
[null,null,null,null,null,null,null,null,null,null,null,null,null,null,null,null,null,null,"ENG1150",29.018867924528301,"HCA1113",1.5]
[null,null,null,null,null,null,null,null,null,null,null,null,null,null,null,null,null,null,"ENG1159",29.142857142857142,"HCA1113L",0]
[null,null,null,null,null,null,null,null,null,null,null,null,null,null,null,null,null,null,"ENG1165",30,"HCA1114",3]
[null,null,null,null,null,null,null,null,null,null,null,null,null,null,null,null,null,null,"ENG1180",30,"HCA1114L",0]
[null,null,null,null,null,null,null,null,null,null,null,null,null,null,null,null,null,null,"ENG1185",30,"HCA1115",3]
[null,null,null,null,null,null,null,null,null,null,null,null,null,null,null,null,null,null,"ENG1190",30,"HCA1115L",0]
[null,null,null,null,null,null,null,null,null,null,null,null,null,null,null,null,null,null,"ENG22",32,"HCA1116",3]
[null,null,null,null,null,null,null,null,null,null,null,null,null,null,null,null,null,null,"ENG2260",25,"HCA1116L",0]
[null,null,null,null,null,null,null,null,null,null,null,null,null,null,null,null,null,null,"ENG2265",25,"HIS1170",3]
[null,null,null,null,null,null,null,null,null,null,null,null,null,null,null,null,null,null,"ENG2285",25,"HIS2265",3]
[null,null,null,null,null,null,null,null,null,null,null,null,null,null,null,null,null,null,"ENG2290",25,"HIS2270",3]
[null,null,null,null,null,null,null,null,null,null,null,null,null,null,null,null,null,null,"ENG30",32,"HTH1121",1.5]
[null,null,null,null,null,null,null,null,null,null,null,null,null,null,null,null,null,null,"ENG32",32,"HTH1125",3]
[null,null,null,null,null,null,null,null,null,null,null,null,null,null,null,null,null,null,"ENV2265",59,"HTH1131",1.5]
[null,null,null,null,null,null,null,null,null,null,null,null,null,null,null,null,null,null,"ENV2265L",19.666666666666668,"HTH1141",1.5]
[null,null,null,null,null,null,null,null,null,null,null,null,null,null,null,null,null,null,"ENV2280",41,"HUM1150",3]
[null,null,null,null,null,null,null,null,null,null,null,null,null,null,null,null,null,null,"ENV2280L",21,"HUM1155",3]
[null,null,null,null,null,null,null,null,null,null,null,null,null,null,null,null,null,null,"ENV2290",21,"HUM1165",3]
[null,null,null,null,null,null,null,null,null,null,null,null,null,null,null,null,null,null,"ENV2290L",21,"HUM1180",3]
[null,null,null,null,null,null,null,null,null,null,null,null,null,null,null,null,null,null,"ENV3355",28,"HUM1190",3]
[null,null,null,null,null,null,null,null,null,null,null,null,null,null,null,null,null,null,"ENV3372",46,"HUM1195",3]
[null,null,null,null,null,null,null,null,null,null,null,null,null,null,null,null,null,null,"ENV3381",56,"HUM2250",3]
[null,null,null,null,null,null,null,null,null,null,null,null,null,null,null,null,null,null,"ENV3381L",19,"HUM2261",3]
[null,null,null,null,null,null,null,null,null,null,null,null,null,null,null,null,null,null,"ENV3383",35,"HUM2281",3]
[null,null,null,null,null,null,null,null,null,null,null,null,null,null,null,null,null,null,"ENV3383L",17.5,"HUM2291",3]
[null,null,null,null,null,null,null,null,null,null,null,null,null,null,null,null,null,null,"ENV3397",66,"HUM2295",3]
[null,null,null,null,null,null,null,null,null,null,null,null,null,null,null,null,null,null,"ENV3397L",21.5,"HUM3350",3]
[null,null,null,null,null,null,null,null,null,null,null,null,null,null,null,null,null,null,"ENV4450",28,"HUM3355",3]
[null,null,null,null,null,null,null,null,null,null,null,null,null,null,null,null,null,null,"ENV4451",28,"IDM1150",3]
[null,null,null,null,null,null,null,null,null,null,null,null,null,null,null,null,null,null,"ESL35",20,"IDM1155",3]
[null,null,null,null,null,null,null,null,null,null,null,null,null,null,null,null,null,null,"ESL56",20,"IDM1158",3]
[null,null,null,null,null,null,null,null,null,null,null,null,null,null,null,null,null,null,"ESL57",20,"IDM1159",3]
[null,null,null,null,null,null,null,null,null,null,null,null,null,null,null,null,null,null,"ESL68",20,"IDM1167",3]
[null,null,null,null,null,null,null,null,null,null,null,null,null,null,null,null,null,null,"ESL75",20,"IDM1170",3]
[null,null,null,null,null,null,null,null,null,null,null,null,null,null,null,null,null,null,"ESL76",20,"IDM1179",3]
[null,null,null,null,null,null,null,null,null,null,null,null,null,null,null,null,null,null,"ESL77",20,"IDM1181",3]
[null,null,null,null,null,null,null,null,null,null,null,null,null,null,null,null,null,null,"ESL78",20,"IDM1190",3]
[null,null,null,null,null,null,null,null,null,null,null,null,null,null,null,null,null,null,"ESL85",20,"IDM2255",3]
[null,null,null,null,null,null,null,null,null,null,null,null,null,null,null,null,null,null,"ESL86",20,"IDM2267",3]
[null,null,null,null,null,null,null,null,null,null,null,null,null,null,null,null,null,null,"ESL87",20,"IDM2270",3]
[null,null,null,null,null,null,null,null,null,null,null,null,null,null,null,null,null,null,"ESL88",20,"IDM2271",3]
[null,null,null,null,null,null,null,null,null,null,null,null,null,null,null,null,null,null,"ESL95",20,"IDM2285",6]
[null,null,null,null,null,null,null,null,null,null,null,null,null,null,null,null,null,null,"ESL96",20,"IDM2286",6]
[null,null,null,null,null,null,null,null,null,null,null,null,null,null,null,null,null,null,"ESL97",20,"IDM2287",6]
[null,null,null,null,null,null,null,null,null,null,null,null,null,null,null,null,null,null,"ESL98",20,"IDM2290",3]
[null,null,null,null,null,null,null,null,null,null,null,null,null,null,null,null,null,null,"ESLL100",60,"IND2251",1.5]
[null,null,null,null,null,null,null,null,null,null,null,null,null,null,null,null,null,null,"EXS1159",18,"IND2252",1.5]
[null,null,null,null,null,null,null,null,null,null,null,null,null,null,null,null,null,null,"EXS1159L",16.666666666666668,"IND4460",3]
[null,null,null,null,null,null,null,null,null,null,null,null,null,null,null,null,null,null,"EXS1178",17.666666666666668,"IRR1152",3]
[null,null,null,null,null,null,null,null,null,null,null,null,null,null,null,null,null,null,"EXS1188",17.5,"IRR2252",3]
[null,null,null,null,null,null,null,null,null,null,null,null,null,null,null,null,null,null,"EXS2252",35,"IRR2252L",0]
[null,null,null,null,null,null,null,null,null,null,null,null,null,null,null,null,null,null,"EXS2256",30,"IST2250",3]
[null,null,null,null,null,null,null,null,null,null,null,null,null,null,null,null,null,null,"EXS2258W",30,"JUS3350",3]
[null,null,null,null,null,null,null,null,null,null,null,null,null,null,null,null,null,null,"EXS2259",30,"JUS3351",3]
[null,null,null,null,null,null,null,null,null,null,null,null,null,null,null,null,null,null,"EXS2260",35,"JUS3352",3]
[null,null,null,null,null,null,null,null,null,null,null,null,null,null,null,null,null,null,"EXS2261",30,"JUS3357",3]
[null,null,null,null,null,null,null,null,null,null,null,null,null,null,null,null,null,null,"EXS2262",18,"JUS3360",3]
[null,null,null,null,null,null,null,null,null,null,null,null,null,null,null,null,null,null,"EXS2262L",9,"JUS3372",3]
[null,null,null,null,null,null,null,null,null,null,null,null,null,null,null,null,null,null,"EXS2267",18,"JUS3378",3]
[null,null,null,null,null,null,null,null,null,null,null,null,null,null,null,null,null,null,"EXS2267L",9,"JUS3387",3]
[null,null,null,null,null,null,null,null,null,null,null,null,null,null,null,null,null,null,"EXS2271",30,"JUS3388",1.5]
[null,null,null,null,null,null,null,null,null,null,null,null,null,null,null,null,null,null,"EXS2274",30,"JUS4450",3]
[null,null,null,null,null,null,null,null,null,null,null,null,null,null,null,null,null,null,"FWK1125W",24,"JUS4452",3]
[null,null,null,null,null,null,null,null,null,null,null,null,null,null,null,null,null,null,"FWK1160W",18,"JUS4453",3]
[null,null,null,null,null,null,null,null,null,null,null,null,null,null,null,null,null,null,"FWK1163W",18.5,"JUS4454",3]
[null,null,null,null,null,null,null,null,null,null,null,null,null,null,null,null,null,null,"FWK2253W",36,"JUS4455",3]
[null,null,null,null,null,null,null,null,null,null,null,null,null,null,null,null,null,null,"FWK2260W",12,"JUS4457",3]
[null,null,null,null,null,null,null,null,null,null,null,null,null,null,null,null,null,null,"FWK2262W",12,"JUS4461",3]
[null,null,null,null,null,null,null,null,null,null,null,null,null,null,null,null,null,null,"FWK2280W",45,"JUS4464",3]
[null,null,null,null,null,null,null,null,null,null,null,null,null,null,null,null,null,null,"FWK2283",2,"JUS4465",3]
[null,null,null,null,null,null,null,null,null,null,null,null,null,null,null,null,null,null,"FWK2283W",2,"JUS4468",3]
[null,null,null,null,null,null,null,null,null,null,null,null,null,null,null,null,null,null,"GAS110",10,"JUS4469",3]
[null,null,null,null,null,null,null,null,null,null,null,null,null,null,null,null,null,null,"GEO1152",24,"JUS4474",3]
[null,null,null,null,null,null,null,null,null,null,null,null,null,null,null,null,null,null,"GEO1152L",24,"JUS4475",3]
[null,null,null,null,null,null,null,null,null,null,null,null,null,null,null,null,null,null,"GEO1165",28.5,"JUS4480",3]
[null,null,null,null,null,null,null,null,null,null,null,null,null,null,null,null,null,null,"GEO1165L",19.5,"JUS4482",3]
[null,null,null,null,null,null,null,null,null,null,null,null,null,null,null,null,null,null,"GEO1166",41.714285714285715,"JUS4483",3]
[null,null,null,null,null,null,null,null,null,null,null,null,null,null,null,null,null,null,"GEO1166L",18.25,"JUS4484",3]
[null,null,null,null,null,null,null,null,null,null,null,null,null,null,null,null,null,null,"GEO1181",24,"KEY1140",3]
[null,null,null,null,null,null,null,null,null,null,null,null,null,null,null,null,null,null,"GEO1181L",24,"KEY1144",1.5]
[null,null,null,null,null,null,null,null,null,null,null,null,null,null,null,null,null,null,"GEO1185",24,"LAR0043",5]
[null,null,null,null,null,null,null,null,null,null,null,null,null,null,null,null,null,null,"GEO2252",10,"LAR0048",5]
[null,null,null,null,null,null,null,null,null,null,null,null,null,null,null,null,null,null,"GEO2280",10,"LAR0055",5]
[null,null,null,null,null,null,null,null,null,null,null,null,null,null,null,null,null,null,"GEO2290",10,"LAR1130",3]
[null,null,null,null,null,null,null,null,null,null,null,null,null,null,null,null,null,null,"GEO3376",46,"LAW1150",3]
[null,null,null,null,null,null,null,null,null,null,null,null,null,null,null,null,null,null,"GEO3376L",18,"LAW1161",3]
[null,null,null,null,null,null,null,null,null,null,null,null,null,null,null,null,null,null,"GEO3380",20,"LAW1164",3]
[null,null,null,null,null,null,null,null,null,null,null,null,null,null,null,null,null,null,"GEO3380L",20,"LAW1166",3]
[null,null,null,null,null,null,null,null,null,null,null,null,null,null,null,null,null,null,"GEO3382",20,"LAW1176",3]
[null,null,null,null,null,null,null,null,null,null,null,null,null,null,null,null,null,null,"GEO3382L",20,"LAW1180",3]
[null,null,null,null,null,null,null,null,null,null,null,null,null,null,null,null,null,null,"GEO3383",28,"LAW2254",3]
[null,null,null,null,null,null,null,null,null,null,null,null,null,null,null,null,null,null,"GEO3383L",18,"LAW2264",3]
[null,null,null,null,null,null,null,null,null,null,null,null,null,null,null,null,null,null,"GEO4464",18,"LAW2265",3]
[null,null,null,null,null,null,null,null,null,null,null,null,null,null,null,null,null,null,"GEO4464L",18,"MAS1122",1.5]
[null,null,null,null,null,null,null,null,null,null,null,null,null,null,null,null,null,null,"HCA1130",54,"MAS1123",1.5]
[null,null,null,null,null,null,null,null,null,null,null,null,null,null,null,null,null,null,"HCA1130L",18,"MAS1130",3]
[null,null,null,null,null,null,null,null,null,null,null,null,null,null,null,null,null,null,"HCA1131",54,"MAS1140",3]
[null,null,null,null,null,null,null,null,null,null,null,null,null,null,null,null,null,null,"HCA1132",54,"MAS1140L",0]
[null,null,null,null,null,null,null,null,null,null,null,null,null,null,null,null,null,null,"HCA1132L",27,"MAS1156",3]
[null,null,null,null,null,null,null,null,null,null,null,null,null,null,null,null,null,null,"HCA1133",54,"MAS1156L",0]
[null,null,null,null,null,null,null,null,null,null,null,null,null,null,null,null,null,null,"HCA1133L",18,"MAS1157",3]
[null,null,null,null,null,null,null,null,null,null,null,null,null,null,null,null,null,null,"HCA1134W",54,"MAS1157L",0]
[null,null,null,null,null,null,null,null,null,null,null,null,null,null,null,null,null,null,"HCA1135",54,"MAS2250",3]
[null,null,null,null,null,null,null,null,null,null,null,null,null,null,null,null,null,null,"HCA1135L",18,"MAS2250L",0]
[null,null,null,null,null,null,null,null,null,null,null,null,null,null,null,null,null,null,"HCA1136",54,"MAS2252",3]
[null,null,null,null,null,null,null,null,null,null,null,null,null,null,null,null,null,null,"HCA1136L",18,"MAS2253",3]
[null,null,null,null,null,null,null,null,null,null,null,null,null,null,null,null,null,null,"HET115",12,"MAS2253L",0]
[null,null,null,null,null,null,null,null,null,null,null,null,null,null,null,null,null,null,"HET125",12,"MAS2254",3]
[null,null,null,null,null,null,null,null,null,null,null,null,null,null,null,null,null,null,"HET135",12,"MAS2254L",0]
[null,null,null,null,null,null,null,null,null,null,null,null,null,null,null,null,null,null,"HET145",12,"MAS2255",3]
[null,null,null,null,null,null,null,null,null,null,null,null,null,null,null,null,null,null,"HIS1170",52.2,"MAS2257",3]
[null,null,null,null,null,null,null,null,null,null,null,null,null,null,null,null,null,null,"HIS2265",35,"MAS2257L",0]
[null,null,null,null,null,null,null,null,null,null,null,null,null,null,null,null,null,null,"HIS2270",30,"MAS2258",3]
[null,null,null,null,null,null,null,null,null,null,null,null,null,null,null,null,null,null,"HSP1151",32,"MAS2258L",0]
[null,null,null,null,null,null,null,null,null,null,null,null,null,null,null,null,null,null,"HSP2250",20,"MAS2259",3]
[null,null,null,null,null,null,null,null,null,null,null,null,null,null,null,null,null,null,"HTH1121",32,"MAS2260",3]
[null,null,null,null,null,null,null,null,null,null,null,null,null,null,null,null,null,null,"HTH1125",32,"MAS2260L",0]
[null,null,null,null,null,null,null,null,null,null,null,null,null,null,null,null,null,null,"HTH1142",32,"MAS2261",1.5]
[null,null,null,null,null,null,null,null,null,null,null,null,null,null,null,null,null,null,"HTH1143W",32,"MGT3370",3]
[null,null,null,null,null,null,null,null,null,null,null,null,null,null,null,null,null,null,"HUM1150",37.5,"MGT3375",3]
[null,null,null,null,null,null,null,null,null,null,null,null,null,null,null,null,null,null,"HUM1155",35,"MKT1152",3]
[null,null,null,null,null,null,null,null,null,null,null,null,null,null,null,null,null,null,"HUM1156",42,"MKT1188",3]
[null,null,null,null,null,null,null,null,null,null,null,null,null,null,null,null,null,null,"HUM1180",33.333333333333336,"MKT2260",3]
[null,null,null,null,null,null,null,null,null,null,null,null,null,null,null,null,null,null,"HUM1190",35,"MKT2277",3]
[null,null,null,null,null,null,null,null,null,null,null,null,null,null,null,null,null,null,"HUM2281",30,"MKT2279",3]
[null,null,null,null,null,null,null,null,null,null,null,null,null,null,null,null,null,null,"HUM2291",24,"MKT2281",3]
[null,null,null,null,null,null,null,null,null,null,null,null,null,null,null,null,null,null,"HUM3350",25.6,"MKT2283",3]
[null,null,null,null,null,null,null,null,null,null,null,null,null,null,null,null,null,null,"HUM3355",27,"MKT2288",3]
[null,null,null,null,null,null,null,null,null,null,null,null,null,null,null,null,null,null,"HUM3370",46,"MKT2290",3]
[null,null,null,null,null,null,null,null,null,null,null,null,null,null,null,null,null,null,"ICP1153",30,"MTH0043",5]
[null,null,null,null,null,null,null,null,null,null,null,null,null,null,null,null,null,null,"ICP1154",25,"MTH0048",5]
[null,null,null,null,null,null,null,null,null,null,null,null,null,null,null,null,null,null,"ICP1156",25,"MTH0054",5]
[null,null,null,null,null,null,null,null,null,null,null,null,null,null,null,null,null,null,"IDM1155",36,"MTH0055",5]
[null,null,null,null,null,null,null,null,null,null,null,null,null,null,null,null,null,null,"IDM1158",72,"MTH0075",5]
[null,null,null,null,null,null,null,null,null,null,null,null,null,null,null,null,null,null,"IDM1158L",24,"MTH1149",3]
[null,null,null,null,null,null,null,null,null,null,null,null,null,null,null,null,null,null,"IDM1158T",24,"MTH1152",3]
[null,null,null,null,null,null,null,null,null,null,null,null,null,null,null,null,null,null,"IDM1159",72,"MTH1160",3]
[null,null,null,null,null,null,null,null,null,null,null,null,null,null,null,null,null,null,"IDM1163",72,"MUS1150",3]
[null,null,null,null,null,null,null,null,null,null,null,null,null,null,null,null,null,null,"IDM1167",48,"NAT1150",3]
[null,null,null,null,null,null,null,null,null,null,null,null,null,null,null,null,null,null,"IDM1167L",24,"NAT1155",3]
[null,null,null,null,null,null,null,null,null,null,null,null,null,null,null,null,null,null,"IDM1167T",24,"NSG1150",3]
[null,null,null,null,null,null,null,null,null,null,null,null,null,null,null,null,null,null,"IDM1170",48,"NSG1155",3]
[null,null,null,null,null,null,null,null,null,null,null,null,null,null,null,null,null,null,"IDM1173",72,"NSG1163",6]
[null,null,null,null,null,null,null,null,null,null,null,null,null,null,null,null,null,null,"IDM1179",46,"NSG1163L",0]
[null,null,null,null,null,null,null,null,null,null,null,null,null,null,null,null,null,null,"IDM1179L",23,"NSG1173",6]
[null,null,null,null,null,null,null,null,null,null,null,null,null,null,null,null,null,null,"IDM1179T",23,"NSG1173L",0]
[null,null,null,null,null,null,null,null,null,null,null,null,null,null,null,null,null,null,"IDM1181",72,"NSG1181",6]
[null,null,null,null,null,null,null,null,null,null,null,null,null,null,null,null,null,null,"IDM1181L",24,"NSG1182",6]
[null,null,null,null,null,null,null,null,null,null,null,null,null,null,null,null,null,null,"IDM1181T",24,"NSG2250",3]
[null,null,null,null,null,null,null,null,null,null,null,null,null,null,null,null,null,null,"IDM1190",72,"NSG2254",3]
[null,null,null,null,null,null,null,null,null,null,null,null,null,null,null,null,null,null,"IDM1190L",24,"NSG2263",6]
[null,null,null,null,null,null,null,null,null,null,null,null,null,null,null,null,null,null,"IDM1190T",24,"NSG2279",3]
[null,null,null,null,null,null,null,null,null,null,null,null,null,null,null,null,null,null,"IDM2255",48,"NSG2290",3]
[null,null,null,null,null,null,null,null,null,null,null,null,null,null,null,null,null,null,"IDM2267",36,"NSG2293",6]
[null,null,null,null,null,null,null,null,null,null,null,null,null,null,null,null,null,null,"IDM2267L",18,"ORG1148",3]
[null,null,null,null,null,null,null,null,null,null,null,null,null,null,null,null,null,null,"IDM2267T",18,"PED1123",1.5]
[null,null,null,null,null,null,null,null,null,null,null,null,null,null,null,null,null,null,"IDM2275",36,"PED1153",1.5]
[null,null,null,null,null,null,null,null,null,null,null,null,null,null,null,null,null,null,"IDM2276",52,"PED1155",3]
[null,null,null,null,null,null,null,null,null,null,null,null,null,null,null,null,null,null,"IDM2278",36,"PED1155L",0]
[null,null,null,null,null,null,null,null,null,null,null,null,null,null,null,null,null,null,"IDM2278L",18,"PED1157",1.5]
[null,null,null,null,null,null,null,null,null,null,null,null,null,null,null,null,null,null,"IDM2278T",18,"PED1158",1.5]
[null,null,null,null,null,null,null,null,null,null,null,null,null,null,null,null,null,null,"IDM2279",52,"PED1159",3]
[null,null,null,null,null,null,null,null,null,null,null,null,null,null,null,null,null,null,"IDM2287",36,"PED1159L",0]
[null,null,null,null,null,null,null,null,null,null,null,null,null,null,null,null,null,null,"IDM2287L",18,"PED1160",1.5]
[null,null,null,null,null,null,null,null,null,null,null,null,null,null,null,null,null,null,"IDM2287T",18,"PED1162",1.5]
[null,null,null,null,null,null,null,null,null,null,null,null,null,null,null,null,null,null,"IDM2290",52,"PED1163",3]
[null,null,null,null,null,null,null,null,null,null,null,null,null,null,null,null,null,null,"IDM2290L",17.333333333333332,"PED1165",1.5]
[null,null,null,null,null,null,null,null,null,null,null,null,null,null,null,null,null,null,"IDM2290T",17.333333333333332,"PED1175",1.5]
[null,null,null,null,null,null,null,null,null,null,null,null,null,null,null,null,null,null,"IND2253",1,"PED1180",3]
[null,null,null,null,null,null,null,null,null,null,null,null,null,null,null,null,null,null,"INS1150",20,"PED1188",3]
[null,null,null,null,null,null,null,null,null,null,null,null,null,null,null,null,null,null,"INS1155",28.23076923076923,"PED2252",3]
[null,null,null,null,null,null,null,null,null,null,null,null,null,null,null,null,null,null,"IRR2252",30,"PED2253",1.5]
[null,null,null,null,null,null,null,null,null,null,null,null,null,null,null,null,null,null,"IRR2252L",15,"PED2256",3]
[null,null,null,null,null,null,null,null,null,null,null,null,null,null,null,null,null,null,"IRR3350",36,"PED2257",3]
[null,null,null,null,null,null,null,null,null,null,null,null,null,null,null,null,null,null,"IRR3350L",18,"PED2257L",0]
[null,null,null,null,null,null,null,null,null,null,null,null,null,null,null,null,null,null,"IRR4450",15,"PED2258",3]
[null,null,null,null,null,null,null,null,null,null,null,null,null,null,null,null,null,null,"IRR4450L",15,"PED2259",3]
[null,null,null,null,null,null,null,null,null,null,null,null,null,null,null,null,null,null,"JUS3350",26,"PED2260",3]
[null,null,null,null,null,null,null,null,null,null,null,null,null,null,null,null,null,null,"JUS3351",28.5,"PED2262",3]
[null,null,null,null,null,null,null,null,null,null,null,null,null,null,null,null,null,null,"JUS3352",30,"PED2262L",0]
[null,null,null,null,null,null,null,null,null,null,null,null,null,null,null,null,null,null,"JUS3357",30,"PED2264",1.5]
[null,null,null,null,null,null,null,null,null,null,null,null,null,null,null,null,null,null,"JUS3360",29.333333333333332,"PED2267",3]
[null,null,null,null,null,null,null,null,null,null,null,null,null,null,null,null,null,null,"JUS3369",27,"PED2267L",0]
[null,null,null,null,null,null,null,null,null,null,null,null,null,null,null,null,null,null,"JUS3372",24,"PED2271",3]
[null,null,null,null,null,null,null,null,null,null,null,null,null,null,null,null,null,null,"JUS3387",26.5,"PED2272",3]
[null,null,null,null,null,null,null,null,null,null,null,null,null,null,null,null,null,null,"JUS3388",40,"PED2276",1.5]
[null,null,null,null,null,null,null,null,null,null,null,null,null,null,null,null,null,null,"JUS4450",27,"PED2280",3]
[null,null,null,null,null,null,null,null,null,null,null,null,null,null,null,null,null,null,"JUS4452W",29,"PEN3390",3]
[null,null,null,null,null,null,null,null,null,null,null,null,null,null,null,null,null,null,"JUS4453W",29,"PEN3393",6]
[null,null,null,null,null,null,null,null,null,null,null,null,null,null,null,null,null,null,"JUS4454W",29,"PEN3394",3]
[null,null,null,null,null,null,null,null,null,null,null,null,null,null,null,null,null,null,"JUS4455W",29,"PEN3395",3]
[null,null,null,null,null,null,null,null,null,null,null,null,null,null,null,null,null,null,"JUS4457W",28,"PEN3396",3]
[null,null,null,null,null,null,null,null,null,null,null,null,null,null,null,null,null,null,"JUS4461W",29.5,"PHY1143",3]
[null,null,null,null,null,null,null,null,null,null,null,null,null,null,null,null,null,null,"JUS4464W",27,"PLT1152",3]
[null,null,null,null,null,null,null,null,null,null,null,null,null,null,null,null,null,null,"JUS4465W",25.5,"PLT1152L",0]
[null,null,null,null,null,null,null,null,null,null,null,null,null,null,null,null,null,null,"JUS4474W",27.5,"PLT1155",3]
[null,null,null,null,null,null,null,null,null,null,null,null,null,null,null,null,null,null,"JUS4475W",27.5,"PLT1155L",0]
[null,null,null,null,null,null,null,null,null,null,null,null,null,null,null,null,null,null,"JUS4480W",27.5,"PLT2260",3]
[null,null,null,null,null,null,null,null,null,null,null,null,null,null,null,null,null,null,"JUS4481W",24,"PLT2260L",0]
[null,null,null,null,null,null,null,null,null,null,null,null,null,null,null,null,null,null,"JUS4482W",27,"PLT2261",3]
[null,null,null,null,null,null,null,null,null,null,null,null,null,null,null,null,null,null,"JUS4483W",30,"PLT2261L",0]
[null,null,null,null,null,null,null,null,null,null,null,null,null,null,null,null,null,null,"KEY1140",42,"PLT2262",3]
[null,null,null,null,null,null,null,null,null,null,null,null,null,null,null,null,null,null,"LAR1130",20,"PLT2262L",0]
[null,null,null,null,null,null,null,null,null,null,null,null,null,null,null,null,null,null,"LAW1150",57,"PLT2263",3]
[null,null,null,null,null,null,null,null,null,null,null,null,null,null,null,null,null,null,"LAW1161",32.285714285714285,"PNG1145",3]
[null,null,null,null,null,null,null,null,null,null,null,null,null,null,null,null,null,null,"LAW1177",27.545454545454547,"PNG1146",3]
[null,null,null,null,null,null,null,null,null,null,null,null,null,null,null,null,null,null,"LAW1178",26.9,"PNG1147",1.5]
[null,null,null,null,null,null,null,null,null,null,null,null,null,null,null,null,null,null,"LAW2254",27.333333333333332,"PNG1148",3]
[null,null,null,null,null,null,null,null,null,null,null,null,null,null,null,null,null,null,"LAW2264",21.166666666666668,"PNG1149",3]
[null,null,null,null,null,null,null,null,null,null,null,null,null,null,null,null,null,null,"MAS1122",24,"PNG1154",3]
[null,null,null,null,null,null,null,null,null,null,null,null,null,null,null,null,null,null,"MAS1125W",24,"PNG1159",3]
[null,null,null,null,null,null,null,null,null,null,null,null,null,null,null,null,null,null,"MAS1130",45,"PNG1167",3]
[null,null,null,null,null,null,null,null,null,null,null,null,null,null,null,null,null,null,"MAS1140",48,"PNG1167L",0]
[null,null,null,null,null,null,null,null,null,null,null,null,null,null,null,null,null,null,"MAS1140L",24,"PNG2251",3]
[null,null,null,null,null,null,null,null,null,null,null,null,null,null,null,null,null,null,"MAS1152",48,"PNG2252",3]
[null,null,null,null,null,null,null,null,null,null,null,null,null,null,null,null,null,null,"MAS1157",48,"PNG2253",3]
[null,null,null,null,null,null,null,null,null,null,null,null,null,null,null,null,null,null,"MAS1157L",24,"PNG2254",3]
[null,null,null,null,null,null,null,null,null,null,null,null,null,null,null,null,null,null,"MAS2250",36,"PNG2255",3]
[null,null,null,null,null,null,null,null,null,null,null,null,null,null,null,null,null,null,"MAS2250L",18,"PNG2256",3]
[null,null,null,null,null,null,null,null,null,null,null,null,null,null,null,null,null,null,"MAS2253",36,"PNG2257",3]
[null,null,null,null,null,null,null,null,null,null,null,null,null,null,null,null,null,null,"MAS2253L",18,"PNG2258",3]
[null,null,null,null,null,null,null,null,null,null,null,null,null,null,null,null,null,null,"MAS2254",36,"PNG2259",6]
[null,null,null,null,null,null,null,null,null,null,null,null,null,null,null,null,null,null,"MAS2254L",18,"PNG2267",3]
[null,null,null,null,null,null,null,null,null,null,null,null,null,null,null,null,null,null,"MAS2255W",18,"PNG2277",6]
[null,null,null,null,null,null,null,null,null,null,null,null,null,null,null,null,null,null,"MAS2257",36,"PRS1155",3]
[null,null,null,null,null,null,null,null,null,null,null,null,null,null,null,null,null,null,"MAS2257L",18,"PRS1172",3]
[null,null,null,null,null,null,null,null,null,null,null,null,null,null,null,null,null,null,"MAS2258",36,"PSC1150",3]
[null,null,null,null,null,null,null,null,null,null,null,null,null,null,null,null,null,null,"MAS2258L",18,"PSC1161",3]
[null,null,null,null,null,null,null,null,null,null,null,null,null,null,null,null,null,null,"MAS2259W",36,"PSC1165",3]
[null,null,null,null,null,null,null,null,null,null,null,null,null,null,null,null,null,null,"MAS2260",36,"PSC2250",3]
[null,null,null,null,null,null,null,null,null,null,null,null,null,null,null,null,null,null,"MAS2260L",18,"PSC2260",3]
[null,null,null,null,null,null,null,null,null,null,null,null,null,null,null,null,null,null,"MAS2262",36,"PSC2280",3]
[null,null,null,null,null,null,null,null,null,null,null,null,null,null,null,null,null,null,"MGT3370",26.5,"PSY1140",3]
[null,null,null,null,null,null,null,null,null,null,null,null,null,null,null,null,null,null,"MGT3375",30,"PSY1160",3]
[null,null,null,null,null,null,null,null,null,null,null,null,null,null,null,null,null,null,"MKT1152",42.666666666666664,"PSY1170",3]
[null,null,null,null,null,null,null,null,null,null,null,null,null,null,null,null,null,null,"MKT1188",36,"PSY1171",3]
[null,null,null,null,null,null,null,null,null,null,null,null,null,null,null,null,null,null,"MOT110",12,"PSY1177",3]
[null,null,null,null,null,null,null,null,null,null,null,null,null,null,null,null,null,null,"MOT120",12,"PSY1179",3]
[null,null,null,null,null,null,null,null,null,null,null,null,null,null,null,null,null,null,"MOT130",12,"PSY2253",3]
[null,null,null,null,null,null,null,null,null,null,null,null,null,null,null,null,null,null,"MOT140",12,"PSY2255",3]
[null,null,null,null,null,null,null,null,null,null,null,null,null,null,null,null,null,null,"MTH10",32,"PSY2260",3]
[null,null,null,null,null,null,null,null,null,null,null,null,null,null,null,null,null,null,"MTH1150",28,"PSY2270",3]
[null,null,null,null,null,null,null,null,null,null,null,null,null,null,null,null,null,null,"MTH1152",30,"PSY2275",3]
[null,null,null,null,null,null,null,null,null,null,null,null,null,null,null,null,null,null,"MTH1160",30,"PSY2277",3]
[null,null,null,null,null,null,null,null,null,null,null,null,null,null,null,null,null,null,"MTH1170",34,"PSY2280",3]
[null,null,null,null,null,null,null,null,null,null,null,null,null,null,null,null,null,null,"MTH20",32,"PSY2290",3]
[null,null,null,null,null,null,null,null,null,null,null,null,null,null,null,null,null,null,"MTH30",32,"PSY2299",3]
[null,null,null,null,null,null,null,null,null,null,null,null,null,null,null,null,null,null,"MTH32",32,"PSY3350",3]
[null,null,null,null,null,null,null,null,null,null,null,null,null,null,null,null,null,null,"MTH9",32,"PSY3355",3]
[null,null,null,null,null,null,null,null,null,null,null,null,null,null,null,null,null,null,"MUS1150",30,"RRM1196",3]
[null,null,null,null,null,null,null,null,null,null,null,null,null,null,null,null,null,null,"NSG1181",32,"RRM1196L",0]
[null,null,null,null,null,null,null,null,null,null,null,null,null,null,null,null,null,null,"NSG1182",16,"RRM1197",3]
[null,null,null,null,null,null,null,null,null,null,null,null,null,null,null,null,null,null,"NSG1400",32,"RRM1197L",0]
[null,null,null,null,null,null,null,null,null,null,null,null,null,null,null,null,null,null,"NSG1410",32,"RRM2250",3]
[null,null,null,null,null,null,null,null,null,null,null,null,null,null,null,null,null,null,"NSG1410L",16,"RRM2250L",0]
[null,null,null,null,null,null,null,null,null,null,null,null,null,null,null,null,null,null,"NSG1420",32,"RRM2252",3]
[null,null,null,null,null,null,null,null,null,null,null,null,null,null,null,null,null,null,"NSG1500",32,"RRM2252L",0]
[null,null,null,null,null,null,null,null,null,null,null,null,null,null,null,null,null,null,"NSG1521",32,"RRM2253",3]
[null,null,null,null,null,null,null,null,null,null,null,null,null,null,null,null,null,null,"NSG1521L",16,"RRM2253L",0]
[null,null,null,null,null,null,null,null,null,null,null,null,null,null,null,null,null,null,"NSG1522L",16,"RRM2256",3]
[null,null,null,null,null,null,null,null,null,null,null,null,null,null,null,null,null,null,"NSG1522W",16,"RRM2256L",0]
[null,null,null,null,null,null,null,null,null,null,null,null,null,null,null,null,null,null,"NSG2268",32,"RRM2258",3]
[null,null,null,null,null,null,null,null,null,null,null,null,null,null,null,null,null,null,"NSG2269W",32,"RRM2258L",0]
[null,null,null,null,null,null,null,null,null,null,null,null,null,null,null,null,null,null,"NSG2290",32,"RRM2259",3]
[null,null,null,null,null,null,null,null,null,null,null,null,null,null,null,null,null,null,"NSG2300",24,"RRM2259L",0]
[null,null,null,null,null,null,null,null,null,null,null,null,null,null,null,null,null,null,"NSG2321",24,"RRM2264",3]
[null,null,null,null,null,null,null,null,null,null,null,null,null,null,null,null,null,null,"NSG2321L",12,"RRM2264L",0]
[null,null,null,null,null,null,null,null,null,null,null,null,null,null,null,null,null,null,"NSG2322W",24,"RRM2281",3]
[null,null,null,null,null,null,null,null,null,null,null,null,null,null,null,null,null,null,"NSG2421",25.6,"RRM2281L",0]
[null,null,null,null,null,null,null,null,null,null,null,null,null,null,null,null,null,null,"NSG2421L",13,"RRM2295",3]
[null,null,null,null,null,null,null,null,null,null,null,null,null,null,null,null,null,null,"NSG2422W",26,"RRM2295L",0]
[null,null,null,null,null,null,null,null,null,null,null,null,null,null,null,null,null,null,"PCD1112",12,"RRM2298",3]
[null,null,null,null,null,null,null,null,null,null,null,null,null,null,null,null,null,null,"PCD1113",12,"RRM2299",3]
[null,null,null,null,null,null,null,null,null,null,null,null,null,null,null,null,null,null,"PCD1114",12,"RRM2299L",0]
[null,null,null,null,null,null,null,null,null,null,null,null,null,null,null,null,null,null,"PCD1115",12,"RRM3368",3]
[null,null,null,null,null,null,null,null,null,null,null,null,null,null,null,null,null,null,"PCD1121",12,"RRM3368L",0]
[null,null,null,null,null,null,null,null,null,null,null,null,null,null,null,null,null,null,"PCD1122",12,"RRM3369",3]
[null,null,null,null,null,null,null,null,null,null,null,null,null,null,null,null,null,null,"PCD1131",12,"RRM3369L",0]
[null,null,null,null,null,null,null,null,null,null,null,null,null,null,null,null,null,null,"PCD1132",12,"RRM4463",3]
[null,null,null,null,null,null,null,null,null,null,null,null,null,null,null,null,null,null,"PCD1133",12,"RRM4463L",0]
[null,null,null,null,null,null,null,null,null,null,null,null,null,null,null,null,null,null,"PCD1134",12,"RSR1160",3]
[null,null,null,null,null,null,null,null,null,null,null,null,null,null,null,null,null,null,"PCD1135",12,"RSR1170",3]
[null,null,null,null,null,null,null,null,null,null,null,null,null,null,null,null,null,null,"PCD1136",12,"RSR2251",3]
[null,null,null,null,null,null,null,null,null,null,null,null,null,null,null,null,null,null,"PCD1137",12,"RSR2256",6]
[null,null,null,null,null,null,null,null,null,null,null,null,null,null,null,null,null,null,"PCD1141",12,"SCI0043",3]
[null,null,null,null,null,null,null,null,null,null,null,null,null,null,null,null,null,null,"PCD1142",12,"SCI0048",3]
[null,null,null,null,null,null,null,null,null,null,null,null,null,null,null,null,null,null,"PED1123",80,"SCI0055",3]
[null,null,null,null,null,null,null,null,null,null,null,null,null,null,null,null,null,null,"PED1180",30,"SCI0075",5]
[null,null,null,null,null,null,null,null,null,null,null,null,null,null,null,null,null,null,"PED1190",29.411764705882351,"SOC1160",3]
[null,null,null,null,null,null,null,null,null,null,null,null,null,null,null,null,null,null,"PED2254",25,"SOC1167",3]
[null,null,null,null,null,null,null,null,null,null,null,null,null,null,null,null,null,null,"PED2257",36,"SOC1170",3]
[null,null,null,null,null,null,null,null,null,null,null,null,null,null,null,null,null,null,"PED2257L",18,"SOC2250",3]
[null,null,null,null,null,null,null,null,null,null,null,null,null,null,null,null,null,null,"PED2280",20,"SOC2260",3]
[null,null,null,null,null,null,null,null,null,null,null,null,null,null,null,null,null,null,"PHY0020L",16,"SOC2270",3]
[null,null,null,null,null,null,null,null,null,null,null,null,null,null,null,null,null,null,"PHY0030L",16,"SOC2276",3]
[null,null,null,null,null,null,null,null,null,null,null,null,null,null,null,null,null,null,"PHY1150",16,"SOC3355",3]
[null,null,null,null,null,null,null,null,null,null,null,null,null,null,null,null,null,null,"PHY1150L",16,"SPN1150",3]
[null,null,null,null,null,null,null,null,null,null,null,null,null,null,null,null,null,null,"PHY20",16,"SPN1151",3]
[null,null,null,null,null,null,null,null,null,null,null,null,null,null,null,null,null,null,"PHY30",16,"SST0043",3]
[null,null,null,null,null,null,null,null,null,null,null,null,null,null,null,null,null,null,"PLM120",8.8000000000000007,"SST0048",3]
[null,null,null,null,null,null,null,null,null,null,null,null,null,null,null,null,null,null,"PLM130",9,"SST0054",3]
[null,null,null,null,null,null,null,null,null,null,null,null,null,null,null,null,null,null,"PLM140",12,"SST0075",5]
[null,null,null,null,null,null,null,null,null,null,null,null,null,null,null,null,null,null,"PLT1155",45,"SST0085",5]
[null,null,null,null,null,null,null,null,null,null,null,null,null,null,null,null,null,null,"PLT1155L",15,"STS1155",3]
[null,null,null,null,null,null,null,null,null,null,null,null,null,null,null,null,null,null,"PLT2253",30,"STS1155L",0]
[null,null,null,null,null,null,null,null,null,null,null,null,null,null,null,null,null,null,"PLT2253L",15,"STS1183",3]
[null,null,null,null,null,null,null,null,null,null,null,null,null,null,null,null,null,null,"PLT2254",30,"STS2250",3]
[null,null,null,null,null,null,null,null,null,null,null,null,null,null,null,null,null,null,"PLT2254L",15,"STS2255",3]
[null,null,null,null,null,null,null,null,null,null,null,null,null,null,null,null,null,null,"PLT2260",30,"STS2255L",0]
[null,null,null,null,null,null,null,null,null,null,null,null,null,null,null,null,null,null,"PLT2260L",15,"STS2270",3]
[null,null,null,null,null,null,null,null,null,null,null,null,null,null,null,null,null,null,"PLT2262",63,"STS3355",3]
[null,null,null,null,null,null,null,null,null,null,null,null,null,null,null,null,null,null,"PLT2262L",15.75,"STS3355L",0]
[null,null,null,null,null,null,null,null,null,null,null,null,null,null,null,null,null,null,"PLT2264",30,"SUR1150",3]
[null,null,null,null,null,null,null,null,null,null,null,null,null,null,null,null,null,null,"PLT2264L",15,"SUR1162",3]
[null,null,null,null,null,null,null,null,null,null,null,null,null,null,null,null,null,null,"PLT3350",36,"SUR2251",3]
[null,null,null,null,null,null,null,null,null,null,null,null,null,null,null,null,null,null,"PLT3350L",18,"SUR2252",1.5]
[null,null,null,null,null,null,null,null,null,null,null,null,null,null,null,null,null,null,"PLT3351",36,"SUR2261",3]
[null,null,null,null,null,null,null,null,null,null,null,null,null,null,null,null,null,null,"PLT3351L",18,"SUR2263",3]
[null,null,null,null,null,null,null,null,null,null,null,null,null,null,null,null,null,null,"PNG1145",36,"SUR2264",3]
[null,null,null,null,null,null,null,null,null,null,null,null,null,null,null,null,null,null,"PNG1146",18,"SUR2265",3]
[null,null,null,null,null,null,null,null,null,null,null,null,null,null,null,null,null,null,"PNG1147W",108,"SUR2270",3]
[null,null,null,null,null,null,null,null,null,null,null,null,null,null,null,null,null,null,"PNG1148",36,"SUR2275",3]
[null,null,null,null,null,null,null,null,null,null,null,null,null,null,null,null,null,null,"PNG1149",18,"TAX2251",3]
[null,null,null,null,null,null,null,null,null,null,null,null,null,null,null,null,null,null,"PNG1154W",108,"TRG1150",3]
[null,null,null,null,null,null,null,null,null,null,null,null,null,null,null,null,null,null,"PNG1159",36,"TRG1160",3]
[null,null,null,null,null,null,null,null,null,null,null,null,null,null,null,null,null,null,"PNG1167",36,"TRG1164",3]
[null,null,null,null,null,null,null,null,null,null,null,null,null,null,null,null,null,null,"PNG1167L",18,"TRG1199",3]
[null,null,null,null,null,null,null,null,null,null,null,null,null,null,null,null,null,null,"PNG2251",36,"TRG2200",3]
[null,null,null,null,null,null,null,null,null,null,null,null,null,null,null,null,null,null,"PNG2252",18,"TRG2251",1.5]
[null,null,null,null,null,null,null,null,null,null,null,null,null,null,null,null,null,null,"PNG2253W",108,"TRG2253",3]
[null,null,null,null,null,null,null,null,null,null,null,null,null,null,null,null,null,null,"PNG2254",36,"TRG2256",3]
[null,null,null,null,null,null,null,null,null,null,null,null,null,null,null,null,null,null,"PNG2255",36,"TRG2260",3]
[null,null,null,null,null,null,null,null,null,null,null,null,null,null,null,null,null,null,"PNG2256",36,"TRG2263",3]
[null,null,null,null,null,null,null,null,null,null,null,null,null,null,null,null,null,null,"PNG2257",36,"TRG2264",3]
[null,null,null,null,null,null,null,null,null,null,null,null,null,null,null,null,null,null,"PNG2259W",108,"TRG2268",6]
[null,null,null,null,null,null,null,null,null,null,null,null,null,null,null,null,null,null,"PNG2260",18,"TRG2268L",0]
[null,null,null,null,null,null,null,null,null,null,null,null,null,null,null,null,null,null,"PNG2267",36,"TRG2270",3]
[null,null,null,null,null,null,null,null,null,null,null,null,null,null,null,null,null,null,"PNG2277W",3,"TRS1150",3]
[null,null,null,null,null,null,null,null,null,null,null,null,null,null,null,null,null,null,"PNR2250",40,"TRS1151",6]
[null,null,null,null,null,null,null,null,null,null,null,null,null,null,null,null,null,null,"PNR2251",40,"TRS1152",3]
[null,null,null,null,null,null,null,null,null,null,null,null,null,null,null,null,null,null,"PNR2252",40,"TRS1153",3]
[null,null,null,null,null,null,null,null,null,null,null,null,null,null,null,null,null,null,"PNR2253",40,"TRS1155",3]
[null,null,null,null,null,null,null,null,null,null,null,null,null,null,null,null,null,null,"PNR2254",20,"TRS1160",3]
[null,null,null,null,null,null,null,null,null,null,null,null,null,null,null,null,null,null,"PNR2270W",40,"TRS1165",3]
[null,null,null,null,null,null,null,null,null,null,null,null,null,null,null,null,null,null,"PPLM100",12,"WHS1110",3]
[null,null,null,null,null,null,null,null,null,null,null,null,null,null,null,null,null,null,"PRT115",17,"WRI1150",3]
[null,null,null,null,null,null,null,null,null,null,null,null,null,null,null,null,null,null,"PRT125",13,"WTT1100",3]
[null,null,null,null,null,null,null,null,null,null,null,null,null,null,null,null,null,null,"PRT135",9,"WTT1100L",0]
[null,null,null,null,null,null,null,null,null,null,null,null,null,null,null,null,null,null,"PSC1161",60,"WTT1100T",0]
[null,null,null,null,null,null,null,null,null,null,null,null,null,null,null,null,null,null,"PSC1165",24,"WTT1103",3]
[null,null,null,null,null,null,null,null,null,null,null,null,null,null,null,null,null,null,"PSC2260",36,"WTT1103L",0]
[null,null,null,null,null,null,null,null,null,null,null,null,null,null,null,null,null,null,"PSC2280",24,"WTT1103T",0]
[null,null,null,null,null,null,null,null,null,null,null,null,null,null,null,null,null,null,"PSEL100",14,"WTT1104",3]
[null,null,null,null,null,null,null,null,null,null,null,null,null,null,null,null,null,null,"PSY1140",20,"WTT1104T",0]
[null,null,null,null,null,null,null,null,null,null,null,null,null,null,null,null,null,null,"PSY1160",51.777777777777779,"WTT1110",3]
[null,null,null,null,null,null,null,null,null,null,null,null,null,null,null,null,null,null,"PSY1168",45,"WTT1113",1.5]
[null,null,null,null,null,null,null,null,null,null,null,null,null,null,null,null,null,null,"PSY1170",43.333333333333336,"WTT1113L",0]
[null,null,null,null,null,null,null,null,null,null,null,null,null,null,null,null,null,null,"PSY1171",37.5,"WTT1114",3]
[null,null,null,null,null,null,null,null,null,null,null,null,null,null,null,null,null,null,"PSY1177",30,"WTT1115",1.5]
[null,null,null,null,null,null,null,null,null,null,null,null,null,null,null,null,null,null,"PSY1179",34,"WTT1116",1.5]
[null,null,null,null,null,null,null,null,null,null,null,null,null,null,null,null,null,null,"PSY1191",43.333333333333336,"WTT1116L",0]
[null,null,null,null,null,null,null,null,null,null,null,null,null,null,null,null,null,null,"PSY2250",24,"WTT1117",3]
[null,null,null,null,null,null,null,null,null,null,null,null,null,null,null,null,null,null,"PSY2253",33.333333333333336,"WTT1118",3]
[null,null,null,null,null,null,null,null,null,null,null,null,null,null,null,null,null,null,"PSY2255",30,"WTT1120",3]
[null,null,null,null,null,null,null,null,null,null,null,null,null,null,null,null,null,null,"PSY2260",38,"WTT1123",6]
[null,null,null,null,null,null,null,null,null,null,null,null,null,null,null,null,null,null,"PSY2270",40,"WTT1123L",0]
[null,null,null,null,null,null,null,null,null,null,null,null,null,null,null,null,null,null,"PSY2275",40,"WTT1124",3]
[null,null,null,null,null,null,null,null,null,null,null,null,null,null,null,null,null,null,"PSY2277",30,"WTT1125",1.5]
[null,null,null,null,null,null,null,null,null,null,null,null,null,null,null,null,null,null,"PSY2280",41,"WTT1126",1.5]
[null,null,null,null,null,null,null,null,null,null,null,null,null,null,null,null,null,null,"PSY2290",40]
[null,null,null,null,null,null,null,null,null,null,null,null,null,null,null,null,null,null,"PSY3350",26.5]
[null,null,null,null,null,null,null,null,null,null,null,null,null,null,null,null,null,null,"PWDG100",12]
[null,null,null,null,null,null,null,null,null,null,null,null,null,null,null,null,null,null,"RRM1197",72]
[null,null,null,null,null,null,null,null,null,null,null,null,null,null,null,null,null,null,"RRM1197L",36]
[null,null,null,null,null,null,null,null,null,null,null,null,null,null,null,null,null,null,"RRM2250",59]
[null,null,null,null,null,null,null,null,null,null,null,null,null,null,null,null,null,null,"RRM2250L",19.666666666666668]
[null,null,null,null,null,null,null,null,null,null,null,null,null,null,null,null,null,null,"RRM2252",46]
[null,null,null,null,null,null,null,null,null,null,null,null,null,null,null,null,null,null,"RRM2252L",23]
[null,null,null,null,null,null,null,null,null,null,null,null,null,null,null,null,null,null,"RRM2253",46]
[null,null,null,null,null,null,null,null,null,null,null,null,null,null,null,null,null,null,"RRM2253L",23]
[null,null,null,null,null,null,null,null,null,null,null,null,null,null,null,null,null,null,"RRM2256",57]
[null,null,null,null,null,null,null,null,null,null,null,null,null,null,null,null,null,null,"RRM2256L",19]
[null,null,null,null,null,null,null,null,null,null,null,null,null,null,null,null,null,null,"RRM2258",57.5]
[null,null,null,null,null,null,null,null,null,null,null,null,null,null,null,null,null,null,"RRM2258L",21]
[null,null,null,null,null,null,null,null,null,null,null,null,null,null,null,null,null,null,"RRM2259",57.5]
[null,null,null,null,null,null,null,null,null,null,null,null,null,null,null,null,null,null,"RRM2259L",21]
[null,null,null,null,null,null,null,null,null,null,null,null,null,null,null,null,null,null,"RRM2264",31]
[null,null,null,null,null,null,null,null,null,null,null,null,null,null,null,null,null,null,"RRM2264L",19]
[null,null,null,null,null,null,null,null,null,null,null,null,null,null,null,null,null,null,"RRM2291",36]
[null,null,null,null,null,null,null,null,null,null,null,null,null,null,null,null,null,null,"RRM2291L",18]
[null,null,null,null,null,null,null,null,null,null,null,null,null,null,null,null,null,null,"RRM2293",36]
[null,null,null,null,null,null,null,null,null,null,null,null,null,null,null,null,null,null,"RRM2293L",18]
[null,null,null,null,null,null,null,null,null,null,null,null,null,null,null,null,null,null,"RRM2295",21]
[null,null,null,null,null,null,null,null,null,null,null,null,null,null,null,null,null,null,"RRM2295L",21]
[null,null,null,null,null,null,null,null,null,null,null,null,null,null,null,null,null,null,"RRM2298",47.5]
[null,null,null,null,null,null,null,null,null,null,null,null,null,null,null,null,null,null,"RRM2299",47.5]
[null,null,null,null,null,null,null,null,null,null,null,null,null,null,null,null,null,null,"RRM2299L",19.25]
[null,null,null,null,null,null,null,null,null,null,null,null,null,null,null,null,null,null,"RRM3350",28]
[null,null,null,null,null,null,null,null,null,null,null,null,null,null,null,null,null,null,"RRM3368",36]
[null,null,null,null,null,null,null,null,null,null,null,null,null,null,null,null,null,null,"RRM3368L",18]
[null,null,null,null,null,null,null,null,null,null,null,null,null,null,null,null,null,null,"RRM3369",36]
[null,null,null,null,null,null,null,null,null,null,null,null,null,null,null,null,null,null,"RRM3369L",18]
[null,null,null,null,null,null,null,null,null,null,null,null,null,null,null,null,null,null,"RRM4460",18]
[null,null,null,null,null,null,null,null,null,null,null,null,null,null,null,null,null,null,"RRM4460L",18]
[null,null,null,null,null,null,null,null,null,null,null,null,null,null,null,null,null,null,"RRM4463",36]
[null,null,null,null,null,null,null,null,null,null,null,null,null,null,null,null,null,null,"RRM4463L",18]
[null,null,null,null,null,null,null,null,null,null,null,null,null,null,null,null,null,null,"RSR1160",40]
[null,null,null,null,null,null,null,null,null,null,null,null,null,null,null,null,null,null,"RSR2257",36]
[null,null,null,null,null,null,null,null,null,null,null,null,null,null,null,null,null,null,"RSR2265",19.333333333333332]
[null,null,null,null,null,null,null,null,null,null,null,null,null,null,null,null,null,null,"RSR2270",36]
[null,null,null,null,null,null,null,null,null,null,null,null,null,null,null,null,null,null,"RSR3350",36]
[null,null,null,null,null,null,null,null,null,null,null,null,null,null,null,null,null,null,"RSR4450",15]
[null,null,null,null,null,null,null,null,null,null,null,null,null,null,null,null,null,null,"RSR4451",15]
[null,null,null,null,null,null,null,null,null,null,null,null,null,null,null,null,null,null,"SCI0010L",16]
[null,null,null,null,null,null,null,null,null,null,null,null,null,null,null,null,null,null,"SCI10",16]
[null,null,null,null,null,null,null,null,null,null,null,null,null,null,null,null,null,null,"SOC1160",57.375]
[null,null,null,null,null,null,null,null,null,null,null,null,null,null,null,null,null,null,"SOC1167",40.9]
[null,null,null,null,null,null,null,null,null,null,null,null,null,null,null,null,null,null,"SOC1170",30]
[null,null,null,null,null,null,null,null,null,null,null,null,null,null,null,null,null,null,"SOC2250",40]
[null,null,null,null,null,null,null,null,null,null,null,null,null,null,null,null,null,null,"SOC2255",28]
[null,null,null,null,null,null,null,null,null,null,null,null,null,null,null,null,null,null,"SOC2260",36.666666666666664]
[null,null,null,null,null,null,null,null,null,null,null,null,null,null,null,null,null,null,"SOC2270",40]
[null,null,null,null,null,null,null,null,null,null,null,null,null,null,null,null,null,null,"SOC2273",26]
[null,null,null,null,null,null,null,null,null,null,null,null,null,null,null,null,null,null,"SOC2276",40]
[null,null,null,null,null,null,null,null,null,null,null,null,null,null,null,null,null,null,"SOC2290",27.4]
[null,null,null,null,null,null,null,null,null,null,null,null,null,null,null,null,null,null,"SOC3355",30]
[null,null,null,null,null,null,null,null,null,null,null,null,null,null,null,null,null,null,"SOL1150",72]
[null,null,null,null,null,null,null,null,null,null,null,null,null,null,null,null,null,null,"SOL1150L",18]
[null,null,null,null,null,null,null,null,null,null,null,null,null,null,null,null,null,null,"SOL2250",25.5]
[null,null,null,null,null,null,null,null,null,null,null,null,null,null,null,null,null,null,"SOL2250L",19]
[null,null,null,null,null,null,null,null,null,null,null,null,null,null,null,null,null,null,"SPN1150",30]
[null,null,null,null,null,null,null,null,null,null,null,null,null,null,null,null,null,null,"SPN1151",30]
[null,null,null,null,null,null,null,null,null,null,null,null,null,null,null,null,null,null,"STS1155",49.5]
[null,null,null,null,null,null,null,null,null,null,null,null,null,null,null,null,null,null,"STS1155L",18]
[null,null,null,null,null,null,null,null,null,null,null,null,null,null,null,null,null,null,"STS2250",43.75]
[null,null,null,null,null,null,null,null,null,null,null,null,null,null,null,null,null,null,"STS2260",29]
[null,null,null,null,null,null,null,null,null,null,null,null,null,null,null,null,null,null,"STS2270",30]
[null,null,null,null,null,null,null,null,null,null,null,null,null,null,null,null,null,null,"STS3355",46]
[null,null,null,null,null,null,null,null,null,null,null,null,null,null,null,null,null,null,"STS3355L",18]
[null,null,null,null,null,null,null,null,null,null,null,null,null,null,null,null,null,null,"SUR1150",23]
[null,null,null,null,null,null,null,null,null,null,null,null,null,null,null,null,null,null,"SUR1150L",23]
[null,null,null,null,null,null,null,null,null,null,null,null,null,null,null,null,null,null,"SUR1180",23]
[null,null,null,null,null,null,null,null,null,null,null,null,null,null,null,null,null,null,"SUR2250",10]
[null,null,null,null,null,null,null,null,null,null,null,null,null,null,null,null,null,null,"SUR2262",10]
[null,null,null,null,null,null,null,null,null,null,null,null,null,null,null,null,null,null,"SUR2267",10]
[null,null,null,null,null,null,null,null,null,null,null,null,null,null,null,null,null,null,"SUR2272",10]
[null,null,null,null,null,null,null,null,null,null,null,null,null,null,null,null,null,null,"SUR2280",10]
[null,null,null,null,null,null,null,null,null,null,null,null,null,null,null,null,null,null,"SUR2280L",10]
[null,null,null,null,null,null,null,null,null,null,null,null,null,null,null,null,null,null,"SUR2285",10]
[null,null,null,null,null,null,null,null,null,null,null,null,null,null,null,null,null,null,"SUR2285L",10]
[null,null,null,null,null,null,null,null,null,null,null,null,null,null,null,null,null,null,"TAX2251",40]
[null,null,null,null,null,null,null,null,null,null,null,null,null,null,null,null,null,null,"TAX2251W",40]
[null,null,null,null,null,null,null,null,null,null,null,null,null,null,null,null,null,null,"TRA1131",24]
[null,null,null,null,null,null,null,null,null,null,null,null,null,null,null,null,null,null,"TRA1131L",24]
[null,null,null,null,null,null,null,null,null,null,null,null,null,null,null,null,null,null,"TRG1150",29]
[null,null,null,null,null,null,null,null,null,null,null,null,null,null,null,null,null,null,"TRG1160",29]
[null,null,null,null,null,null,null,null,null,null,null,null,null,null,null,null,null,null,"TRG1164",29]
[null,null,null,null,null,null,null,null,null,null,null,null,null,null,null,null,null,null,"TRG1199W",29]
[null,null,null,null,null,null,null,null,null,null,null,null,null,null,null,null,null,null,"TRG2253",29]
[null,null,null,null,null,null,null,null,null,null,null,null,null,null,null,null,null,null,"TRG2256",29]
[null,null,null,null,null,null,null,null,null,null,null,null,null,null,null,null,null,null,"TRG2259",29]
[null,null,null,null,null,null,null,null,null,null,null,null,null,null,null,null,null,null,"TRG2260",28.666666666666668]
[null,null,null,null,null,null,null,null,null,null,null,null,null,null,null,null,null,null,"TRG2263",29]
[null,null,null,null,null,null,null,null,null,null,null,null,null,null,null,null,null,null,"TRG2264",29]
[null,null,null,null,null,null,null,null,null,null,null,null,null,null,null,null,null,null,"TRG2268",29]
[null,null,null,null,null,null,null,null,null,null,null,null,null,null,null,null,null,null,"TRG2268L",14]
[null,null,null,null,null,null,null,null,null,null,null,null,null,null,null,null,null,null,"TRG2270",29]
[null,null,null,null,null,null,null,null,null,null,null,null,null,null,null,null,null,null,"TRG2299W",25]
[null,null,null,null,null,null,null,null,null,null,null,null,null,null,null,null,null,null,"VXR1150",27]
[null,null,null,null,null,null,null,null,null,null,null,null,null,null,null,null,null,null,"VXR1150L",27]
[null,null,null,null,null,null,null,null,null,null,null,null,null,null,null,null,null,null,"VXR1160",27]
[null,null,null,null,null,null,null,null,null,null,null,null,null,null,null,null,null,null,"VXR1160L",27]
[null,null,null,null,null,null,null,null,null,null,null,null,null,null,null,null,null,null,"VXR1161",30]
[null,null,null,null,null,null,null,null,null,null,null,null,null,null,null,null,null,null,"VXR1161L",30]
[null,null,null,null,null,null,null,null,null,null,null,null,null,null,null,null,null,null,"VXR1161T",30]
[null,null,null,null,null,null,null,null,null,null,null,null,null,null,null,null,null,null,"VXR1165",30]
[null,null,null,null,null,null,null,null,null,null,null,null,null,null,null,null,null,null,"VXR1165L",30]
[null,null,null,null,null,null,null,null,null,null,null,null,null,null,null,null,null,null,"VXR1165T",30]
[null,null,null,null,null,null,null,null,null,null,null,null,null,null,null,null,null,null,"VXR1170",30]
[null,null,null,null,null,null,null,null,null,null,null,null,null,null,null,null,null,null,"VXR1170L",30]
[null,null,null,null,null,null,null,null,null,null,null,null,null,null,null,null,null,null,"VXR1170T",30]
[null,null,null,null,null,null,null,null,null,null,null,null,null,null,null,null,null,null,"VXR1171",30]
[null,null,null,null,null,null,null,null,null,null,null,null,null,null,null,null,null,null,"VXR1171L",30]
[null,null,null,null,null,null,null,null,null,null,null,null,null,null,null,null,null,null,"VXR1171T",30]
[null,null,null,null,null,null,null,null,null,null,null,null,null,null,null,null,null,null,"VXR1180",30]
[null,null,null,null,null,null,null,null,null,null,null,null,null,null,null,null,null,null,"VXR1180L",30]
[null,null,null,null,null,null,null,null,null,null,null,null,null,null,null,null,null,null,"VXR1180T",30]
[null,null,null,null,null,null,null,null,null,null,null,null,null,null,null,null,null,null,"VXR1181",30]
[null,null,null,null,null,null,null,null,null,null,null,null,null,null,null,null,null,null,"VXR1181L",30]
[null,null,null,null,null,null,null,null,null,null,null,null,null,null,null,null,null,null,"VXR1181T",30]
[null,null,null,null,null,null,null,null,null,null,null,null,null,null,null,null,null,null,"VXR1190",30]
[null,null,null,null,null,null,null,null,null,null,null,null,null,null,null,null,null,null,"VXR1190L",30]
[null,null,null,null,null,null,null,null,null,null,null,null,null,null,null,null,null,null,"VXR1190T",30]
[null,null,null,null,null,null,null,null,null,null,null,null,null,null,null,null,null,null,"WDG110",12]
[null,null,null,null,null,null,null,null,null,null,null,null,null,null,null,null,null,null,"WDG120",12]
[null,null,null,null,null,null,null,null,null,null,null,null,null,null,null,null,null,null,"WDG130",12]
[null,null,null,null,null,null,null,null,null,null,null,null,null,null,null,null,null,null,"WHS1110",16]
[null,null,null,null,null,null,null,null,null,null,null,null,null,null,null,null,null,null,"WRI1150",40]
[null,null,null,null,null,null,null,null,null,null,null,null,null,null,null,null,null,null,"WTT1100",24]
[null,null,null,null,null,null,null,null,null,null,null,null,null,null,null,null,null,null,"WTT1100L",16]
[null,null,null,null,null,null,null,null,null,null,null,null,null,null,null,null,null,null,"WTT1100T",16]
[null,null,null,null,null,null,null,null,null,null,null,null,null,null,null,null,null,null,"WTT1103",24]
[null,null,null,null,null,null,null,null,null,null,null,null,null,null,null,null,null,null,"WTT1103L",16]
[null,null,null,null,null,null,null,null,null,null,null,null,null,null,null,null,null,null,"WTT1103T",16]
[null,null,null,null,null,null,null,null,null,null,null,null,null,null,null,null,null,null,"WTT1104",24]
[null,null,null,null,null,null,null,null,null,null,null,null,null,null,null,null,null,null,"WTT1104T",16]
[null,null,null,null,null,null,null,null,null,null,null,null,null,null,null,null,null,null,"WTT1110",16]
[null,null,null,null,null,null,null,null,null,null,null,null,null,null,null,null,null,null,"WTT1110L",24]
[null,null,null,null,null,null,null,null,null,null,null,null,null,null,null,null,null,null,"WTT1113",24]
[null,null,null,null,null,null,null,null,null,null,null,null,null,null,null,null,null,null,"WTT1113L",16]
[null,null,null,null,null,null,null,null,null,null,null,null,null,null,null,null,null,null,"WTT1114",24]
[null,null,null,null,null,null,null,null,null,null,null,null,null,null,null,null,null,null,"WTT1114W",24]
[null,null,null,null,null,null,null,null,null,null,null,null,null,null,null,null,null,null,"WTT1115",24]
[null,null,null,null,null,null,null,null,null,null,null,null,null,null,null,null,null,null,"WTT1116",16]
[null,null,null,null,null,null,null,null,null,null,null,null,null,null,null,null,null,null,"WTT1116L",16]
[null,null,null,null,null,null,null,null,null,null,null,null,null,null,null,null,null,null,"WTT1117",16]
[null,null,null,null,null,null,null,null,null,null,null,null,null,null,null,null,null,null,"WTT1118",21.333333333333332]
[null,null,null,null,null,null,null,null,null,null,null,null,null,null,null,null,null,null,"WTT1120",16]
[null,null,null,null,null,null,null,null,null,null,null,null,null,null,null,null,null,null,"WTT1120L",16]
[null,null,null,null,null,null,null,null,null,null,null,null,null,null,null,null,null,null,"WTT1121",32]
[null,null,null,null,null,null,null,null,null,null,null,null,null,null,null,null,null,null,"WTT1121L",16]
[null,null,null,null,null,null,null,null,null,null,null,null,null,null,null,null,null,null,"WTT1123",16]
[null,null,null,null,null,null,null,null,null,null,null,null,null,null,null,null,null,null,"WTT1123L",16]
[null,null,null,null,null,null,null,null,null,null,null,null,null,null,null,null,null,null,"WTT1124",16]
[null,null,null,null,null,null,null,null,null,null,null,null,null,null,null,null,null,null,"WTT1125",24]
[null,null,null,null,null,null,null,null,null,null,null,null,null,null,null,null,null,null,"WTT1127",16]
[null,null,null,null,null,null,null,null,null,null,null,null,null,null,null,null,null,null,"WTT1129",32]
[null,null,null,null,null,null,null,null,null,null,null,null,null,null,null,null,null,null,"WTT1129L",16]
[null,null,null,null,null,null,null,null,null,null,null,null,null,null,null,null,null,null,"WTT1130",16]
[null,null,null,null,null,null,null,null,null,null,null,null,null,null,null,null,null,null,"WTT1130L",16]

{"sheet":"Professional Development","index":1,"n_rows":8,"n_cols":9,"rows_kept":8,"cut":false,"hidden":false,"merged":[]}
["Explanation of Professional Development Area",null,null,null,null,null,null,null,"Click here to return to the Calculator"]
["The Calculator assumes that a faculty member will engage in these types of activities for ~50 h each year, and these don't need to be specifically accounted for."]
["• develop and maintain technical, pedagogical and interpersonal skills"]
["• participate in activities that enhance an instructor’s overall effectiveness"]
["• participate in activities that keep instructors up-to-date with the latest techniques, information, and technical innovations in their discipline"]
["• participate in professional development activities offered by the Centre for Teaching Learning and Innovation"]
["• participate in activities to maintain professional designations"]
["• involvement with discipline related volunteer activities in the community or at the college"]

{"sheet":"Inst-Disc Service","index":2,"n_rows":10,"n_cols":9,"rows_kept":10,"cut":false,"hidden":false,"merged":[]}
["Explanation of Institutional/Discipline Service Area",null,null,null,null,null,null,null,"Click here to return to the Calculator"]
["The Calculator assumes that a faculty member will engage in these types of activities for ~128 h each year, and these don't need to be specifically accounted for."]
["• attend and participate in meetings related to their employment with the college (e.g. advisory committees, regularly scheduled program meetings, program timetable meetings, etc.)"]
["• assume a role on one or more college committees per year"]
["• orient and provide mentorship to probationary instructors and provide peer support where necessary for new and established colleagues"]
["• participate in professional or governmental organizations at the community, provincial, regional, national, or international level. This service may include serving on "]
[null,"committees, being an officer in an organization, or developing a conference program. It may also include providing professional peer reviews, news releases, "]
[null,"or other means for informing the media on discipline related topics; jurying creative work, serving on external review teams; and speaking to local, regional, national, "]
[null,"and professional agencies"]
["• participate in activities to meet general or specific needs identified by the program or college"]

{"sheet":"Applied Research","index":3,"n_rows":14,"n_cols":9,"rows_kept":14,"cut":false,"hidden":false,"merged":[]}
["Explanation of Applied Research area",null,null,null,null,null,null,null,"Click here to return to the Calculator"]
["These activities can be conducted as partial or complete substitution of Instructional Responsibilities. Engagement in applied research, and the related workload, "]
["will be mutually agreed upon by the faculty member and administration and is not to constitute additional work above and beyond other responsibilities."]
["• applied research can be categorized as follows:"]
["          o discipline based applied research conducted in conjunction with community/industry partners that is solution oriented with outcomes that can be applied to the real world;"]
["          o applied research in the Scholarship of Teaching and Learning conducted in conjunction with internal and community partners that is solution oriented with outcomes "]
[null,"that can be applied to the learning environment"]
["• work closely with their Dean and the Centre of Applied Research and Innovation and participate in a program of applied research related to their field of expertise and "]
[null,"aligned with institutional applied research plans"]
["• identify and select the problems to be studied"]
["• contribute to the acquisition of funding"]
["• meet obligations of funding agencies and research partners"]
["• determine the research methodology, and the organization and dissemination of results"]
["• integrate applied research opportunities into instructional activities, including mentoring and supervising students"]